DepartmentFamily,Entity,Date,ExpenseType,ExpenseArea,Supplier,PaymentNumber,InvoiceDistributionAmount,InvoiceDescription,SupplierPostCode,ExpenditureType
FOOD STANDARDS AGENCY - Westminster,FOOD STANDARDS AGENCY - Westminster,2018-05-22,EXP - PURCHASE OF GOODS/SERVICES - OTHER - PROGRAMME EXPENDITURE,REGULATORY DELIVERY,TRADING STANDARDS INSTITUTE (GRANTS),1011706086,376605.46,Feed Off. Conts 2017/18 Prog delivery (inland/ports). Feed Official Controls funding 2017/18: To deliver a programme of Official Controls (inland inspections/sampling & ports work) in 2017/18.,SS15 6TH,PROGRAMME
FOOD STANDARDS AGENCY - Westminster,FOOD STANDARDS AGENCY - Westminster,2018-05-22,EXP - PURCHASE OF GOODS/SERVICES - OTHER - PROGRAMME EXPENDITURE,REGULATORY DELIVERY,TRADING STANDARDS INSTITUTE (GRANTS),1011706086,177923.75,Feed Off. Conts 2017/18 Prog delivery (FH@PP). Feed Official Controls funding 2017/18: To deliver a programme of Official Controls (Food Hygiene at Primary Production) in 2017/18.,SS15 6TH,PROGRAMME
FOOD STANDARDS AGENCY - Westminster,FOOD STANDARDS AGENCY - Westminster,2018-05-03,EXP - PURCHASE OF GOODS/SERVICES - OTHER - PROGRAMME EXPENDITURE,FOODBORNE DISEASE CONTROL,ANIMAL AND PLANT HEALTH AGENCY,2012700435,151058.88,FS101126: Retention / Final payment,KT15 3NB,PROGRAMME
FOOD STANDARDS AGENCY - Westminster,FOOD STANDARDS AGENCY - Westminster,2018-05-16,EXP - PURCHASE OF GOODS/SERVICES - SUPPORT - CIVIL SERVICE ADMIN,FINANCE BRANCH,LONDON PENSIONS FUND AUTHORITY,1011706047,121657.75,2018-19 LPFA Pension Deficit reduction.,EC3N 4LP,ADMIN
FOOD STANDARDS AGENCY - Westminster,FOOD STANDARDS AGENCY - Westminster,2018-05-16,EXP - PURCHASE OF GOODS/SERVICES - SUPPORT - CIVIL SERVICE ADMIN,FINANCE BRANCH,LONDON PENSIONS FUND AUTHORITY,1011706047,121657.75,2018-19 LPFA Pension Deficit reduction.,EC3N 4LP,ADMIN
FOOD STANDARDS AGENCY - Westminster,FOOD STANDARDS AGENCY - Westminster,2018-05-10,Exp - Purchase Of Goods/Services - Consultancy,REGULATING OUR FUTURE,IBM UNITED KINGDOM LTD,1011705985,110470,FSA RFQ Workpackage 10,PO6 3AE,ADMIN
FOOD STANDARDS AGENCY - Westminster,FOOD STANDARDS AGENCY - Westminster,2018-05-11,EXP - RENTALS UNDER NON PFI OPERATING LEASES -OTHER RENTAL- RENT OUTSIDE LONDON,SECURITY & ESTATES,MONTAGU EVANS LLP,1011705995,106677.94,Rent and Rate charges for Foss house,EH3 8EG,ADMIN
FOOD STANDARDS AGENCY - Westminster,FOOD STANDARDS AGENCY - Westminster,2018-05-03,EXP - PURCHASE OF GOODS/SERVICES - OTHER - PROGRAMME EXPENDITURE,SCIENTIFIC METHODS AND LABORATORY POLICY,PUBLIC HEALTH ENGLAND,2012700434,94959.47,FS516010: NRL for Microbiology (1 April 2017-31 March 2019) Chelvi Leonard,NW9 5EQ,PROGRAMME
FOOD STANDARDS AGENCY - Westminster,FOOD STANDARDS AGENCY - Westminster,2018-05-17,EXP - PURCHASE OF GOODS/SERVICES - OTHER - PROGRAMME EXPENDITURE,SCIENTIFIC METHODS AND LABORATORY POLICY,LGC LTD,1011706058,53333,FS101206-DEVELOPMENT OF QUALITY CONTROL MATERIALS FOR FOOD ALLERGEN ANALYSIS12/01/2018 to 10/05/2019 ,TW11 0LY,PROGRAMME
FOOD STANDARDS AGENCY - Westminster,FOOD STANDARDS AGENCY - Westminster,2018-05-04,EXP - PURCHASE OF GOODS/SERVICES - IT MANAGEMENT AND CHANGE - IT DEVELOPMENT,IT STRATEGY & DEVELOPMENT,COREAZURE LTD,1011705939,42500,WP8 - GPO & OU Configuration,EC1A 4EN,ADMIN
FOOD STANDARDS AGENCY - Westminster,FOOD STANDARDS AGENCY - Westminster,2018-05-08,EXP - AMORTISATION - INTANGIBLE ASSETS,IT STRATEGY & DEVELOPMENT,4 NET,1011705942,40307.84,New VC Solution,M32 0TR,CAPITAL
FOOD STANDARDS AGENCY - Westminster,FOOD STANDARDS AGENCY - Westminster,2018-05-18,EXP - PURCHASE OF GOODS/SERVICES - TELECOMS,IT SERVICE DELIVERY,VODAFONE LTD,1011706067,38922.77,Vodafone Quarterly PSN Charges Q4 2017 - Q4 2018,MK3 5JL,ADMIN
FOOD STANDARDS AGENCY - Westminster,FOOD STANDARDS AGENCY - Westminster,2018-05-25,EXP - PURCHASE OF GOODS/SERVICES - OTHER ICT COSTS - COMPUTER HARDWARE,IT SERVICE DELIVERY,COREAZURE LTD,1011706117,33685.75,"Datacentre Discovery and Design - Variable - Azure Basket of Goods - VMs, OMS & Storage (WP5)",EC1A 4EN,ADMIN
FOOD STANDARDS AGENCY - Westminster,FOOD STANDARDS AGENCY - Westminster,2018-05-09,EXP - PURCHASE OF GOODS/SERVICES - OTHER FACILITIES COSTS,LEGAL  BRANCH A & INVESTIGATIONS,FOREIGN & COMMONWEALTH OFFICE,2012700438,33575.58,2018/19 FCO Platform Charges and Residential Charges for FSA staff member Phil Flaherty based at UKRep in Brussels.,MK10 1PX,ADMIN
FOOD STANDARDS AGENCY - Westminster,FOOD STANDARDS AGENCY - Westminster,2018-05-30,EXP - PURCHASE OF GOODS/SERVICES - OTHER - PROGRAMME EXPENDITURE,COMMS,MSQ PARTNERS GROUP LTD,1011706131,31748.1,MSQ - Food Safety Week 2018 Oasis Plan,W1T 4TJ,PROGRAMME
FOOD STANDARDS AGENCY - Westminster,FOOD STANDARDS AGENCY - Westminster,2018-05-03,EXP - PURCHASE OF GOODS/SERVICES - OTHER - PROGRAMME EXPENDITURE,SCIENTIFIC METHODS AND LABORATORY POLICY,PUBLIC HEALTH ENGLAND,2012700434,29481.47,FS101196 - Final Report. Invoice due 28/02/2018,NW9 5EQ,PROGRAMME
FOOD STANDARDS AGENCY - Westminster,FOOD STANDARDS AGENCY - Westminster,2018-05-25,EXP - PURCHASE OF GOODS/SERVICES - OTHER - PROGRAMME EXPENDITURE,DIGITAL,WUNDER LTD,1011706118,25000,Food.gov.uk optimisation work April-May 2018,N1 9AB,PROGRAMME
FOOD STANDARDS AGENCY - Westminster,FOOD STANDARDS AGENCY - Westminster,2018-05-30,EXP - PURCHASE OF GOODS/SERV - SUPPORT - IT SUPPORT SERVICES,IT SERVICE DELIVERY,LITTLE FISH UK LTD,1011706134,24611,Littlefish End user monthly service charge Apr 18 - Mar 19,NG1 1LS,ADMIN
FOOD STANDARDS AGENCY - Westminster,FOOD STANDARDS AGENCY - Westminster,2018-05-03,EXP - PURCHASE OF GOODS/SERV - SUPPORT - IT SUPPORT SERVICES,FINANCE BRANCH,SHARED SERVICES CONNECTED LTD,1011705916,24270.42,SSCL Core Charge Management Services 2018-19.  ,HP2 7AH,ADMIN
FOOD STANDARDS AGENCY - Westminster,FOOD STANDARDS AGENCY - Westminster,2018-05-30,EXP - PURCHASE OF GOODS/SERV - SUPPORT - IT SUPPORT SERVICES,IT SERVICE DELIVERY,LITTLE FISH UK LTD,1011706134,24264,LittleFish Monthy Service Desk charge Apr 18 - Mar 19,NG1 1LS,ADMIN
FOOD STANDARDS AGENCY - Westminster,FOOD STANDARDS AGENCY - Westminster,2018-05-22,EXP - PURCHASE OF GOODS/SERV - SUPPORT - IT SUPPORT SERVICES,FINANCE BRANCH,SHARED SERVICES CONNECTED LTD,1011706087,24178.93,SSCL Core Charge Management Services 2018-19.  ,HP2 7AH,ADMIN
FOOD STANDARDS AGENCY - Westminster,FOOD STANDARDS AGENCY - Westminster,2018-05-10,Exp - Purchase Of Goods/Services - Consultancy,REGULATING OUR FUTURE,IBM UNITED KINGDOM LTD,1011705985,22094,PERIOD: FROM 03/04/2018 TO 27/04/2018,PO6 3AE,ADMIN
FOOD STANDARDS AGENCY - Westminster,FOOD STANDARDS AGENCY - Westminster,2018-05-31,EXP - PURCHASE OF GOODS/SERVICES - OTHER - PROGRAMME EXPENDITURE,MICRO FOOD SAFETY BRANCH,THE CHARTERED INSTITUTE OF ENVIRONMENTAL HEALTH,1011706148,21668.28,FS101098- BULK ORDER Systematic review of the relative proportion of foodborne disease.,SE1 8DJ,PROGRAMME
FOOD STANDARDS AGENCY - Westminster,FOOD STANDARDS AGENCY - Westminster,2018-05-04,EXP - PURCHASE OF GOODS/SERVICES - OTHER - PROGRAMME EXPENDITURE,REGULATORY DELIVERY,C E F A S,2012700436,21077.13,Shellfish Classification,NR33 0HT,PROGRAMME
FOOD STANDARDS AGENCY - Westminster,FOOD STANDARDS AGENCY - Westminster,2018-05-14,EXP - PURCHASE OF GOODS/SERVICES - OTHER - PROGRAMME EXPENDITURE,REGULATORY DELIVERY,C E F A S,2012700440,14199.45,Shellfish Biotoxin Flesh analysis - DSP,NR33 0HT,PROGRAMME
FOOD STANDARDS AGENCY - Westminster,FOOD STANDARDS AGENCY - Westminster,2018-05-14,EXP - PURCHASE OF GOODS/SERVICES - OTHER - PROGRAMME EXPENDITURE,REGULATORY DELIVERY,C E F A S,2012700440,12540.22,Shellfish Biotoxin Flesh analysis - PSP,NR33 0HT,PROGRAMME
FOOD STANDARDS AGENCY - Westminster,FOOD STANDARDS AGENCY - Westminster,2018-05-14,EXP - PURCHASE OF GOODS/SERVICES - OTHER - PROGRAMME EXPENDITURE,REGULATORY DELIVERY,C E F A S,2012700440,9507.49,Shellfish Biotoxin Flesh analysis - ASP,NR33 0HT,PROGRAMME
FOOD STANDARDS AGENCY - Westminster,FOOD STANDARDS AGENCY - Westminster,2018-05-14,EXP - PURCHASE OF GOODS/SERVICES - OTHER - PROGRAMME EXPENDITURE,REGULATORY DELIVERY,C E F A S,2012700440,9203.79,Phytoplankton analysis 2017/18,NR33 0HT,PROGRAMME
FOOD STANDARDS AGENCY - Westminster,FOOD STANDARDS AGENCY - Westminster,2018-05-08,EXP - AMORTISATION - INTANGIBLE ASSETS,IT STRATEGY & DEVELOPMENT,4 NET,1011705942,8061.57,PO11770003253,M32 0TR,CAPITAL
FOOD STANDARDS AGENCY - Westminster,FOOD STANDARDS AGENCY - Westminster,2018-05-18,EXP - PURCHASE OF GOODS/SERVICES - TELECOMS,IT SERVICE DELIVERY,VODAFONE LTD,1011706067,7784.55,SERVICES,MK3 5JL,ADMIN
FOOD STANDARDS AGENCY - Westminster,FOOD STANDARDS AGENCY - Westminster,2018-05-30,EXP - PURCHASE OF GOODS/SERVICES - OTHER - PROGRAMME EXPENDITURE,COMMS,MSQ PARTNERS GROUP LTD,1011706131,6349.62,PO 11770003606,W1T 4TJ,PROGRAMME
FOOD STANDARDS AGENCY - Westminster,FOOD STANDARDS AGENCY - Westminster,2018-05-29,EXP - PURCHASE OF GOODS/SERVICES - RAIL TRAVEL,OPERATIONAL DELIVERY,REDFERN TRAVEL LTD,1011706126,3944.8,Travel Expenses Wk 20,BD1 5HQ,PROGRAMME
FOOD STANDARDS AGENCY - Westminster,FOOD STANDARDS AGENCY - Westminster,2018-05-01,EXP - PURCHASE OF GOODS/SERVICES - RAIL TRAVEL,OPERATIONAL DELIVERY,REDFERN TRAVEL LTD,1011705889,3849.1,Travel Expenses Wk 16,BD1 5HQ,PROGRAMME
FOOD STANDARDS AGENCY - Westminster,FOOD STANDARDS AGENCY - Westminster,2018-05-15,EXP - PURCHASE OF GOODS/SERVICES - RAIL TRAVEL,OPERATIONAL DELIVERY,REDFERN TRAVEL LTD,1011706022,3739.95,Travel Expenses Wk 18,BD1 5HQ,PROGRAMME
FOOD STANDARDS AGENCY - Westminster,FOOD STANDARDS AGENCY - Westminster,2018-05-18,EXP - PURCHASE OF GOODS/SERVICES - RAIL TRAVEL,OPERATIONAL DELIVERY,REDFERN TRAVEL LTD,1011706064,3058.92,TRAVEL EXPENSES  Wk 19,BD1 5HQ,PROGRAMME
FOOD STANDARDS AGENCY - Westminster,FOOD STANDARDS AGENCY - Westminster,2018-05-08,EXP - PURCHASE OF GOODS/SERVICES - RAIL TRAVEL,OPERATIONAL DELIVERY,REDFERN TRAVEL LTD,1011705948,2812.2,Travel Expenses Wk 17,BD1 5HQ,PROGRAMME
FOOD STANDARDS AGENCY - Westminster,FOOD STANDARDS AGENCY - Westminster,2018-05-01,EXP - PURCHASE OF GOODS/SERVICES - RAIL TRAVEL,OPERATIONS ASSURANCE DIVISION (PROGRAMME),REDFERN TRAVEL LTD,1011705889,2379.6,Travel Expenses Wk 16,BD1 5HQ,PROGRAMME
FOOD STANDARDS AGENCY - Westminster,FOOD STANDARDS AGENCY - Westminster,2018-05-01,EXP - PURCHASE OF GOODS/SERVICES - RAIL TRAVEL,ORGANISATIONAL DEVELOPMENT,REDFERN TRAVEL LTD,1011705889,2371.6,Travel Expenses Wk 16,BD1 5HQ,ADMIN
FOOD STANDARDS AGENCY - Westminster,FOOD STANDARDS AGENCY - Westminster,2018-05-15,EXP - PURCHASE OF GOODS/SERVICES - RAIL TRAVEL,OPERATIONS ASSURANCE DIVISION (PROGRAMME),REDFERN TRAVEL LTD,1011706022,2217.5,Travel Expenses Wk 18,BD1 5HQ,PROGRAMME
FOOD STANDARDS AGENCY - Westminster,FOOD STANDARDS AGENCY - Westminster,2018-05-15,EXP - PURCHASE OF GOODS/SERVICES - RAIL TRAVEL,REGULATING OUR FUTURE,REDFERN TRAVEL LTD,1011706022,2079.45,Travel Expenses Wk 18,BD1 5HQ,ADMIN
FOOD STANDARDS AGENCY - Westminster,FOOD STANDARDS AGENCY - Westminster,2018-05-08,EXP - PURCHASE OF GOODS/SERVICES - RAIL TRAVEL,OPERATIONS ASSURANCE DIVISION (PROGRAMME),REDFERN TRAVEL LTD,1011705948,2062.45,Travel Expenses Wk 17,BD1 5HQ,PROGRAMME
FOOD STANDARDS AGENCY - Westminster,FOOD STANDARDS AGENCY - Westminster,2018-05-18,EXP - PURCHASE OF GOODS/SERVICES - RAIL TRAVEL,OPERATIONS ASSURANCE DIVISION (PROGRAMME),REDFERN TRAVEL LTD,1011706064,2031.75,TRAVEL EXPENSES  Wk 19,BD1 5HQ,PROGRAMME
FOOD STANDARDS AGENCY - Westminster,FOOD STANDARDS AGENCY - Westminster,2018-05-08,EXP - PURCHASE OF GOODS/SERVICES - RAIL TRAVEL,REGULATORY DELIVERY,REDFERN TRAVEL LTD,1011705948,1977.2,Travel Expenses Wk 17,BD1 5HQ,ADMIN
FOOD STANDARDS AGENCY - Westminster,FOOD STANDARDS AGENCY - Westminster,2018-05-18,EXP - PURCHASE OF GOODS/SERVICES - RAIL TRAVEL,REGULATORY DELIVERY,REDFERN TRAVEL LTD,1011706064,1962.85,TRAVEL EXPENSES  Wk 19,BD1 5HQ,ADMIN
FOOD STANDARDS AGENCY - Westminster,FOOD STANDARDS AGENCY - Westminster,2018-05-01,EXP - PURCHASE OF GOODS/SERVICES - RAIL TRAVEL,REGULATORY DELIVERY,REDFERN TRAVEL LTD,1011705889,1916.7,Travel Expenses Wk 16,BD1 5HQ,ADMIN
FOOD STANDARDS AGENCY - Westminster,FOOD STANDARDS AGENCY - Westminster,2018-05-15,EXP - PURCHASE OF GOODS/SERVICES - SUBSISTENCE,OPERATIONAL DELIVERY,REDFERN TRAVEL LTD,1011706022,1853.49,Travel Expenses Wk 18,BD1 5HQ,PROGRAMME
FOOD STANDARDS AGENCY - Westminster,FOOD STANDARDS AGENCY - Westminster,2018-05-18,EXP - PURCHASE OF GOODS/SERVICES - RAIL TRAVEL,ORGANISATIONAL DEVELOPMENT,REDFERN TRAVEL LTD,1011706064,1812.86,TRAVEL EXPENSES  Wk 19,BD1 5HQ,ADMIN
FOOD STANDARDS AGENCY - Westminster,FOOD STANDARDS AGENCY - Westminster,2018-05-18,EXP - PURCHASE OF GOODS/SERVICES - RAIL TRAVEL,FINANCE BRANCH,REDFERN TRAVEL LTD,1011706064,1617,TRAVEL EXPENSES  Wk 19,BD1 5HQ,ADMIN
FOOD STANDARDS AGENCY - Westminster,FOOD STANDARDS AGENCY - Westminster,2018-05-01,EXP - PURCHASE OF GOODS/SERVICES - SUBSISTENCE,OPERATIONS ASSURANCE DIVISION (PROGRAMME),REDFERN TRAVEL LTD,1011705889,1478.31,Travel Expenses Wk 16,BD1 5HQ,PROGRAMME
FOOD STANDARDS AGENCY - Westminster,FOOD STANDARDS AGENCY - Westminster,2018-05-15,EXP - PURCHASE OF GOODS/SERVICES - SUBSISTENCE,ORGANISATIONAL DEVELOPMENT,REDFERN TRAVEL LTD,1011706022,1370.62,Travel Expenses Wk 18,BD1 5HQ,ADMIN
FOOD STANDARDS AGENCY - Westminster,FOOD STANDARDS AGENCY - Westminster,2018-05-01,EXP - PURCHASE OF GOODS/SERVICES - SUBSISTENCE,OPERATIONAL DELIVERY,REDFERN TRAVEL LTD,1011705889,1353.65,Travel Expenses Wk 16,BD1 5HQ,PROGRAMME
FOOD STANDARDS AGENCY - Westminster,FOOD STANDARDS AGENCY - Westminster,2018-05-15,EXP - PURCHASE OF GOODS/SERVICES - RAIL TRAVEL,ORGANISATIONAL DEVELOPMENT,REDFERN TRAVEL LTD,1011706022,1314.55,Travel Expenses Wk 18,BD1 5HQ,ADMIN
FOOD STANDARDS AGENCY - Westminster,FOOD STANDARDS AGENCY - Westminster,2018-05-15,EXP - PURCHASE OF GOODS/SERVICES - RAIL TRAVEL,IT SERVICE DELIVERY,REDFERN TRAVEL LTD,1011706022,1287.9,Travel Expenses Wk 18,BD1 5HQ,ADMIN
FOOD STANDARDS AGENCY - Westminster,FOOD STANDARDS AGENCY - Westminster,2018-05-01,EXP - PURCHASE OF GOODS/SERVICES - RAIL TRAVEL,FINANCE BRANCH,REDFERN TRAVEL LTD,1011705889,1283.65,Travel Expenses Wk 16,BD1 5HQ,ADMIN
FOOD STANDARDS AGENCY - Westminster,FOOD STANDARDS AGENCY - Westminster,2018-05-08,EXP - PURCHASE OF GOODS/SERVICES - SUBSISTENCE,REGULATORY DELIVERY,REDFERN TRAVEL LTD,1011705948,1192.62,Travel Expenses Wk 17,BD1 5HQ,ADMIN
FOOD STANDARDS AGENCY - Westminster,FOOD STANDARDS AGENCY - Westminster,2018-05-18,EXP - PURCHASE OF GOODS/SERVICES - RAIL TRAVEL,COMMS,REDFERN TRAVEL LTD,1011706064,1183.3,TRAVEL EXPENSES  Wk 19,BD1 5HQ,ADMIN
FOOD STANDARDS AGENCY - Westminster,FOOD STANDARDS AGENCY - Westminster,2018-05-29,EXP - PURCHASE OF GOODS/SERVICES - RAIL TRAVEL,ORGANISATIONAL DEVELOPMENT,REDFERN TRAVEL LTD,1011706126,1155.6,Travel Expenses Wk 20,BD1 5HQ,ADMIN
FOOD STANDARDS AGENCY - Westminster,FOOD STANDARDS AGENCY - Westminster,2018-05-08,EXP - PURCHASE OF GOODS/SERVICES - RAIL TRAVEL,ORGANISATIONAL DEVELOPMENT,REDFERN TRAVEL LTD,1011705948,1144.9,Travel Expenses Wk 17,BD1 5HQ,ADMIN
FOOD STANDARDS AGENCY - Westminster,FOOD STANDARDS AGENCY - Westminster,2018-05-15,EXP - PURCHASE OF GOODS/SERVICES - RAIL TRAVEL,REGULATORY DELIVERY,REDFERN TRAVEL LTD,1011706022,1063.05,Travel Expenses Wk 18,BD1 5HQ,ADMIN
FOOD STANDARDS AGENCY - Westminster,FOOD STANDARDS AGENCY - Westminster,2018-05-29,EXP - PURCHASE OF GOODS/SERVICES - RAIL TRAVEL,OPERATIONS ASSURANCE DIVISION (PROGRAMME),REDFERN TRAVEL LTD,1011706126,1037.7,Travel Expenses Wk 20,BD1 5HQ,PROGRAMME
FOOD STANDARDS AGENCY - Westminster,FOOD STANDARDS AGENCY - Westminster,2018-05-29,EXP - PURCHASE OF GOODS/SERVICES - SUBSISTENCE,OPERATIONS ASSURANCE DIVISION (PROGRAMME),REDFERN TRAVEL LTD,1011706126,1017.05,Travel Expenses Wk 20,BD1 5HQ,PROGRAMME
FOOD STANDARDS AGENCY - Westminster,FOOD STANDARDS AGENCY - Westminster,2018-05-29,EXP - PURCHASE OF GOODS/SERVICES - RAIL TRAVEL,IT SERVICE DELIVERY,REDFERN TRAVEL LTD,1011706126,997.5,Travel Expenses Wk 20,BD1 5HQ,ADMIN
FOOD STANDARDS AGENCY - Westminster,FOOD STANDARDS AGENCY - Westminster,2018-05-18,EXP - PURCHASE OF GOODS/SERVICES - SUBSISTENCE,OPERATIONAL DELIVERY,REDFERN TRAVEL LTD,1011706064,949.58,TRAVEL EXPENSES  Wk 19,BD1 5HQ,PROGRAMME
FOOD STANDARDS AGENCY - Westminster,FOOD STANDARDS AGENCY - Westminster,2018-05-29,EXP - PURCHASE OF GOODS/SERVICES - AIR TRAVEL,ORGANISATIONAL DEVELOPMENT,REDFERN TRAVEL LTD,1011706126,946.95,Travel Expenses Wk 20,BD1 5HQ,ADMIN
FOOD STANDARDS AGENCY - Westminster,FOOD STANDARDS AGENCY - Westminster,2018-05-15,EXP - PURCHASE OF GOODS/SERVICES - SUBSISTENCE,OPERATIONS ASSURANCE DIVISION (PROGRAMME),REDFERN TRAVEL LTD,1011706022,904.69,Travel Expenses Wk 18,BD1 5HQ,PROGRAMME
FOOD STANDARDS AGENCY - Westminster,FOOD STANDARDS AGENCY - Westminster,2018-05-29,EXP - PURCHASE OF GOODS/SERVICES - RAIL TRAVEL,NON MEAT FIELD OPS,REDFERN TRAVEL LTD,1011706126,901.7,Travel Expenses Wk 20,BD1 5HQ,PROGRAMME
FOOD STANDARDS AGENCY - Westminster,FOOD STANDARDS AGENCY - Westminster,2018-05-29,EXP - PURCHASE OF GOODS/SERVICES - AIR TRAVEL,COMMS,REDFERN TRAVEL LTD,1011706126,892.72,Travel Expenses Wk 20,BD1 5HQ,ADMIN
FOOD STANDARDS AGENCY - Westminster,FOOD STANDARDS AGENCY - Westminster,2018-05-18,EXP - PURCHASE OF GOODS/SERVICES - RAIL TRAVEL,FOOD INCIDENTS AND RESILIENCE PROG,REDFERN TRAVEL LTD,1011706064,884.7,TRAVEL EXPENSES  Wk 19,BD1 5HQ,PROGRAMME
FOOD STANDARDS AGENCY - Westminster,FOOD STANDARDS AGENCY - Westminster,2018-05-01,EXP - PURCHASE OF GOODS/SERVICES - RAIL TRAVEL,REGULATING OUR FUTURE,REDFERN TRAVEL LTD,1011705889,867.96,Travel Expenses Wk 16,BD1 5HQ,ADMIN
FOOD STANDARDS AGENCY - Westminster,FOOD STANDARDS AGENCY - Westminster,2018-05-29,EXP - PURCHASE OF GOODS/SERVICES - SUBSISTENCE,FOOD INCIDENTS AND RESILIENCE PROG,REDFERN TRAVEL LTD,1011706126,864.88,Travel Expenses Wk 20,BD1 5HQ,PROGRAMME
FOOD STANDARDS AGENCY - Westminster,FOOD STANDARDS AGENCY - Westminster,2018-05-08,EXP - PURCHASE OF GOODS/SERVICES - SUBSISTENCE,ORGANISATIONAL DEVELOPMENT,REDFERN TRAVEL LTD,1011705948,852.2,Travel Expenses Wk 17,BD1 5HQ,ADMIN
FOOD STANDARDS AGENCY - Westminster,FOOD STANDARDS AGENCY - Westminster,2018-05-08,EXP - PURCHASE OF GOODS/SERVICES - RAIL TRAVEL,NON MEAT FIELD OPS,REDFERN TRAVEL LTD,1011705948,836.15,Travel Expenses Wk 17,BD1 5HQ,PROGRAMME
FOOD STANDARDS AGENCY - Westminster,FOOD STANDARDS AGENCY - Westminster,2018-05-08,EXP - PURCHASE OF GOODS/SERVICES - SUBSISTENCE,COMMS,REDFERN TRAVEL LTD,1011705948,817.9,Travel Expenses Wk 17,BD1 5HQ,ADMIN
FOOD STANDARDS AGENCY - Westminster,FOOD STANDARDS AGENCY - Westminster,2018-05-01,EXP - PURCHASE OF GOODS/SERVICES - RAIL TRAVEL,INFORMATION & KNOWLEDGE MANAGMENT,REDFERN TRAVEL LTD,1011705889,810.3,Travel Expenses Wk 16,BD1 5HQ,ADMIN
FOOD STANDARDS AGENCY - Westminster,FOOD STANDARDS AGENCY - Westminster,2018-05-29,EXP - PURCHASE OF GOODS/SERVICES - SUBSISTENCE,NON MEAT FIELD OPS,REDFERN TRAVEL LTD,1011706126,803.19,Travel Expenses Wk 20,BD1 5HQ,PROGRAMME
FOOD STANDARDS AGENCY - Westminster,FOOD STANDARDS AGENCY - Westminster,2018-05-08,EXP - PURCHASE OF GOODS/SERVICES - SUBSISTENCE,REGULATING OUR FUTURE,REDFERN TRAVEL LTD,1011705948,801.15,Travel Expenses Wk 17,BD1 5HQ,ADMIN
FOOD STANDARDS AGENCY - Westminster,FOOD STANDARDS AGENCY - Westminster,2018-05-15,EXP - PURCHASE OF GOODS/SERVICES - RAIL TRAVEL,INFORMATION & KNOWLEDGE MANAGMENT,REDFERN TRAVEL LTD,1011706022,787.1,Travel Expenses Wk 18,BD1 5HQ,ADMIN
FOOD STANDARDS AGENCY - Westminster,FOOD STANDARDS AGENCY - Westminster,2018-05-01,EXP - PURCHASE OF GOODS/SERVICES - SUBSISTENCE,ORGANISATIONAL DEVELOPMENT,REDFERN TRAVEL LTD,1011705889,770.67,Travel Expenses Wk 16,BD1 5HQ,ADMIN
FOOD STANDARDS AGENCY - Westminster,FOOD STANDARDS AGENCY - Westminster,2018-05-08,EXP - PURCHASE OF GOODS/SERVICES - SUBSISTENCE,NON MEAT FIELD OPS,REDFERN TRAVEL LTD,1011705948,754.13,Travel Expenses Wk 17,BD1 5HQ,PROGRAMME
FOOD STANDARDS AGENCY - Westminster,FOOD STANDARDS AGENCY - Westminster,2018-05-15,EXP - PURCHASE OF GOODS/SERVICES - SUBSISTENCE,REGULATORY DELIVERY,REDFERN TRAVEL LTD,1011706022,745.23,Travel Expenses Wk 18,BD1 5HQ,ADMIN
FOOD STANDARDS AGENCY - Westminster,FOOD STANDARDS AGENCY - Westminster,2018-05-29,EXP - PURCHASE OF GOODS/SERVICES - SUBSISTENCE,LEGAL  BRANCH A & INVESTIGATIONS,REDFERN TRAVEL LTD,1011706126,744.83,Travel Expenses Wk 20,BD1 5HQ,ADMIN
FOOD STANDARDS AGENCY - Westminster,FOOD STANDARDS AGENCY - Westminster,2018-05-01,EXP - PURCHASE OF GOODS/SERVICES - AIR TRAVEL,FOOD INCIDENTS AND RESILIENCE PROG,REDFERN TRAVEL LTD,1011705889,738.18,Travel Expenses Wk 16,BD1 5HQ,PROGRAMME
FOOD STANDARDS AGENCY - Westminster,FOOD STANDARDS AGENCY - Westminster,2018-05-01,EXP - PURCHASE OF GOODS/SERVICES - SUBSISTENCE,Wales and West 4 ,REDFERN TRAVEL LTD,1011705889,733.22,Travel Expenses Wk 16,BD1 5HQ,PROGRAMME
FOOD STANDARDS AGENCY - Westminster,FOOD STANDARDS AGENCY - Westminster,2018-05-01,EXP - PURCHASE OF GOODS/SERVICES - RAIL TRAVEL,"RADIOLOGICAL, NOVEL FOOD & PROCESSES",REDFERN TRAVEL LTD,1011705889,732.65,Travel Expenses Wk 16,BD1 5HQ,ADMIN
FOOD STANDARDS AGENCY - Westminster,FOOD STANDARDS AGENCY - Westminster,2018-05-08,EXP - PURCHASE OF GOODS/SERVICES - SUBSISTENCE,OPERATIONAL DELIVERY,REDFERN TRAVEL LTD,1011705948,715.96,Travel Expenses Wk 17,BD1 5HQ,PROGRAMME
FOOD STANDARDS AGENCY - Westminster,FOOD STANDARDS AGENCY - Westminster,2018-05-01,EXP - PURCHASE OF GOODS/SERVICES - RAIL TRAVEL,COMMS,REDFERN TRAVEL LTD,1011705889,711.2,Travel Expenses Wk 16,BD1 5HQ,ADMIN
FOOD STANDARDS AGENCY - Westminster,FOOD STANDARDS AGENCY - Westminster,2018-05-15,EXP - PURCHASE OF GOODS/SERVICES - RAIL TRAVEL,"RADIOLOGICAL, NOVEL FOOD & PROCESSES",REDFERN TRAVEL LTD,1011706022,701.2,Travel Expenses Wk 18,BD1 5HQ,ADMIN
FOOD STANDARDS AGENCY - Westminster,FOOD STANDARDS AGENCY - Westminster,2018-05-08,EXP - PURCHASE OF GOODS/SERVICES - RAIL TRAVEL,Wales and West 3 ,REDFERN TRAVEL LTD,1011705948,691.9,Travel Expenses Wk 17,BD1 5HQ,PROGRAMME
FOOD STANDARDS AGENCY - Westminster,FOOD STANDARDS AGENCY - Westminster,2018-05-29,EXP - PURCHASE OF GOODS/SERVICES - SUBSISTENCE,OPERATIONAL DELIVERY,REDFERN TRAVEL LTD,1011706126,690.7,Travel Expenses Wk 20,BD1 5HQ,PROGRAMME
FOOD STANDARDS AGENCY - Westminster,FOOD STANDARDS AGENCY - Westminster,2018-05-01,EXP - PURCHASE OF GOODS/SERVICES - SUBSISTENCE,FOOD INCIDENTS AND RESILIENCE PROG,REDFERN TRAVEL LTD,1011705889,688.3,Travel Expenses Wk 16,BD1 5HQ,PROGRAMME
FOOD STANDARDS AGENCY - Westminster,FOOD STANDARDS AGENCY - Westminster,2018-05-18,EXP - PURCHASE OF GOODS/SERVICES - RAIL TRAVEL,INFORMATION & KNOWLEDGE MANAGMENT,REDFERN TRAVEL LTD,1011706064,680.7,TRAVEL EXPENSES  Wk 19,BD1 5HQ,ADMIN
FOOD STANDARDS AGENCY - Westminster,FOOD STANDARDS AGENCY - Westminster,2018-05-08,EXP - PURCHASE OF GOODS/SERVICES - SUBSISTENCE,OPERATIONS ASSURANCE DIVISION (PROGRAMME),REDFERN TRAVEL LTD,1011705948,677.1,Travel Expenses Wk 17,BD1 5HQ,PROGRAMME
FOOD STANDARDS AGENCY - Westminster,FOOD STANDARDS AGENCY - Westminster,2018-05-15,EXP - PURCHASE OF GOODS/SERVICES - RAIL TRAVEL,CORPORATE SUPPORT UNIT,REDFERN TRAVEL LTD,1011706022,668.05,Travel Expenses Wk 18,BD1 5HQ,ADMIN
FOOD STANDARDS AGENCY - Westminster,FOOD STANDARDS AGENCY - Westminster,2018-05-29,EXP - PURCHASE OF GOODS/SERVICES - RAIL TRAVEL,REGULATORY DELIVERY,REDFERN TRAVEL LTD,1011706126,658.05,Travel Expenses Wk 20,BD1 5HQ,ADMIN
FOOD STANDARDS AGENCY - Westminster,FOOD STANDARDS AGENCY - Westminster,2018-05-29,EXP - PURCHASE OF GOODS/SERVICES - SUBSISTENCE,REGULATORY & INTERNATIONAL,REDFERN TRAVEL LTD,1011706126,655.75,Travel Expenses Wk 20,BD1 5HQ,ADMIN
FOOD STANDARDS AGENCY - Westminster,FOOD STANDARDS AGENCY - Westminster,2018-05-01,EXP - PURCHASE OF GOODS/SERVICES - AIR TRAVEL,OPERATIONS ASSURANCE DIVISION (PROGRAMME),REDFERN TRAVEL LTD,1011705889,651.91,Travel Expenses Wk 16,BD1 5HQ,PROGRAMME
FOOD STANDARDS AGENCY - Westminster,FOOD STANDARDS AGENCY - Westminster,2018-05-01,EXP - PURCHASE OF GOODS/SERVICES - SUBSISTENCE,REGULATORY DELIVERY,REDFERN TRAVEL LTD,1011705889,638.38,Travel Expenses Wk 16,BD1 5HQ,ADMIN
FOOD STANDARDS AGENCY - Westminster,FOOD STANDARDS AGENCY - Westminster,2018-05-08,EXP - PURCHASE OF GOODS/SERVICES - AIR TRAVEL,OPERATIONS ASSURANCE DIVISION (PROGRAMME),REDFERN TRAVEL LTD,1011705948,637.88,Travel Expenses Wk 17,BD1 5HQ,PROGRAMME
FOOD STANDARDS AGENCY - Westminster,FOOD STANDARDS AGENCY - Westminster,2018-05-08,EXP - PURCHASE OF GOODS/SERVICES - RAIL TRAVEL,FOOD INCIDENTS AND RESILIENCE PROG,REDFERN TRAVEL LTD,1011705948,632.2,Travel Expenses Wk 17,BD1 5HQ,PROGRAMME
FOOD STANDARDS AGENCY - Westminster,FOOD STANDARDS AGENCY - Westminster,2018-05-15,EXP - PURCHASE OF GOODS/SERVICES - SUBSISTENCE,"RADIOLOGICAL, NOVEL FOOD & PROCESSES",REDFERN TRAVEL LTD,1011706022,631.8,Travel Expenses Wk 18,BD1 5HQ,ADMIN
FOOD STANDARDS AGENCY - Westminster,FOOD STANDARDS AGENCY - Westminster,2018-05-08,EXP - PURCHASE OF GOODS/SERVICES - RAIL TRAVEL,REGULATING OUR FUTURE,REDFERN TRAVEL LTD,1011705948,629.9,Travel Expenses Wk 17,BD1 5HQ,ADMIN
FOOD STANDARDS AGENCY - Westminster,FOOD STANDARDS AGENCY - Westminster,2018-05-01,EXP - PURCHASE OF GOODS/SERVICES - SUBSISTENCE,REGULATORY & INTERNATIONAL,REDFERN TRAVEL LTD,1011705889,622.47,Travel Expenses Wk 16,BD1 5HQ,ADMIN
FOOD STANDARDS AGENCY - Westminster,FOOD STANDARDS AGENCY - Westminster,2018-05-18,EXP - PURCHASE OF GOODS/SERVICES - SUBSISTENCE,LEGAL  BRANCH A & INVESTIGATIONS,REDFERN TRAVEL LTD,1011706064,622,TRAVEL EXPENSES  Wk 19,BD1 5HQ,ADMIN
FOOD STANDARDS AGENCY - Westminster,FOOD STANDARDS AGENCY - Westminster,2018-05-08,EXP - PURCHASE OF GOODS/SERVICES - RAIL TRAVEL,LEGAL  BRANCH A & INVESTIGATIONS,REDFERN TRAVEL LTD,1011705948,618.8,Travel Expenses Wk 17,BD1 5HQ,ADMIN
FOOD STANDARDS AGENCY - Westminster,FOOD STANDARDS AGENCY - Westminster,2018-05-08,EXP - PURCHASE OF GOODS/SERVICES - RAIL TRAVEL,FINANCE BRANCH,REDFERN TRAVEL LTD,1011705948,615.75,Travel Expenses Wk 17,BD1 5HQ,ADMIN
FOOD STANDARDS AGENCY - Westminster,FOOD STANDARDS AGENCY - Westminster,2018-05-15,EXP - PURCHASE OF GOODS/SERVICES - AIR TRAVEL,COMMS,REDFERN TRAVEL LTD,1011706022,607.08,Travel Expenses Wk 18,BD1 5HQ,ADMIN
FOOD STANDARDS AGENCY - Westminster,FOOD STANDARDS AGENCY - Westminster,2018-05-15,EXP - PURCHASE OF GOODS/SERVICES - SUBSISTENCE,REGULATING OUR FUTURE,REDFERN TRAVEL LTD,1011706022,600.6,Travel Expenses Wk 18,BD1 5HQ,ADMIN
FOOD STANDARDS AGENCY - Westminster,FOOD STANDARDS AGENCY - Westminster,2018-05-08,EXP - PURCHASE OF GOODS/SERVICES - RAIL TRAVEL,REGULATORY & INTERNATIONAL,REDFERN TRAVEL LTD,1011705948,599.9,Travel Expenses Wk 17,BD1 5HQ,ADMIN
FOOD STANDARDS AGENCY - Westminster,FOOD STANDARDS AGENCY - Westminster,2018-05-01,EXP - PURCHASE OF GOODS/SERVICES - SUBSISTENCE,RESILIENCE ADMIN,REDFERN TRAVEL LTD,1011705889,593.96,Travel Expenses Wk 16,BD1 5HQ,ADMIN
FOOD STANDARDS AGENCY - Westminster,FOOD STANDARDS AGENCY - Westminster,2018-05-29,EXP - PURCHASE OF GOODS/SERVICES - RAIL TRAVEL,FOOD INCIDENTS AND RESILIENCE PROG,REDFERN TRAVEL LTD,1011706126,589.7,Travel Expenses Wk 20,BD1 5HQ,PROGRAMME
FOOD STANDARDS AGENCY - Westminster,FOOD STANDARDS AGENCY - Westminster,2018-05-08,EXP - PURCHASE OF GOODS/SERVICES - SUBSISTENCE,FOOD INCIDENTS AND RESILIENCE PROG,REDFERN TRAVEL LTD,1011705948,587.45,Travel Expenses Wk 17,BD1 5HQ,PROGRAMME
FOOD STANDARDS AGENCY - Westminster,FOOD STANDARDS AGENCY - Westminster,2018-05-01,EXP - PURCHASE OF GOODS/SERVICES - AIR TRAVEL,REGULATING OUR FUTURE,REDFERN TRAVEL LTD,1011705889,586.41,Travel Expenses Wk 16,BD1 5HQ,ADMIN
FOOD STANDARDS AGENCY - Westminster,FOOD STANDARDS AGENCY - Westminster,2018-05-15,EXP - PURCHASE OF GOODS/SERVICES - RAIL TRAVEL,COMMS,REDFERN TRAVEL LTD,1011706022,581.5,Travel Expenses Wk 18,BD1 5HQ,ADMIN
FOOD STANDARDS AGENCY - Westminster,FOOD STANDARDS AGENCY - Westminster,2018-05-15,EXP - PURCHASE OF GOODS/SERVICES -  FOREIGN AIR TRAVEL,"AGRICULTURAL, PROCESS & ENVIRONMENTAL CONTAMINANTS",REDFERN TRAVEL LTD,1011706022,580.09,Travel Expenses Wk 18,BD1 5HQ,ADMIN
FOOD STANDARDS AGENCY - Westminster,FOOD STANDARDS AGENCY - Westminster,2018-05-01,EXP - PURCHASE OF GOODS/SERVICES - RAIL TRAVEL,Wales and West 2 (Wales),REDFERN TRAVEL LTD,1011705889,576.7,Travel Expenses Wk 16,BD1 5HQ,PROGRAMME
FOOD STANDARDS AGENCY - Westminster,FOOD STANDARDS AGENCY - Westminster,2018-05-15,EXP - PURCHASE OF GOODS/SERVICES - RAIL TRAVEL,DIGITAL,REDFERN TRAVEL LTD,1011706022,574.1,Travel Expenses Wk 18,BD1 5HQ,ADMIN
FOOD STANDARDS AGENCY - Westminster,FOOD STANDARDS AGENCY - Westminster,2018-05-18,EXP - PURCHASE OF GOODS/SERVICES - RAIL TRAVEL,REGULATORY & INTERNATIONAL,REDFERN TRAVEL LTD,1011706064,565.8,TRAVEL EXPENSES  Wk 19,BD1 5HQ,ADMIN
FOOD STANDARDS AGENCY - Westminster,FOOD STANDARDS AGENCY - Westminster,2018-05-29,EXP - PURCHASE OF GOODS/SERVICES - SUBSISTENCE,REGULATORY DELIVERY,REDFERN TRAVEL LTD,1011706126,560.87,Travel Expenses Wk 20,BD1 5HQ,ADMIN
FOOD STANDARDS AGENCY - Westminster,FOOD STANDARDS AGENCY - Westminster,2018-05-15,EXP - PURCHASE OF GOODS/SERVICES - AIR TRAVEL,"RADIOLOGICAL, NOVEL FOOD & PROCESSES",REDFERN TRAVEL LTD,1011706022,554.64,Travel Expenses Wk 18,BD1 5HQ,ADMIN
FOOD STANDARDS AGENCY - Westminster,FOOD STANDARDS AGENCY - Westminster,2018-05-15,EXP - PURCHASE OF GOODS/SERVICES - RAIL TRAVEL,LEGAL  BRANCH A & INVESTIGATIONS,REDFERN TRAVEL LTD,1011706022,547.2,Travel Expenses Wk 18,BD1 5HQ,ADMIN
FOOD STANDARDS AGENCY - Westminster,FOOD STANDARDS AGENCY - Westminster,2018-05-29,EXP - PURCHASE OF GOODS/SERVICES - RAIL TRAVEL,LEGAL  BRANCH A & INVESTIGATIONS,REDFERN TRAVEL LTD,1011706126,527.4,Travel Expenses Wk 20,BD1 5HQ,ADMIN
FOOD STANDARDS AGENCY - Westminster,FOOD STANDARDS AGENCY - Westminster,2018-05-01,EXP - PURCHASE OF GOODS/SERVICES - RAIL TRAVEL,IT SERVICE DELIVERY,REDFERN TRAVEL LTD,1011705889,526.6,Travel Expenses Wk 16,BD1 5HQ,ADMIN
FOOD STANDARDS AGENCY - Westminster,FOOD STANDARDS AGENCY - Westminster,2018-05-08,EXP - PURCHASE OF GOODS/SERVICES - FOREIGN SUBSISTENCE,ANALYSIS & RESEARCH BRANCH,REDFERN TRAVEL LTD,1011705948,516.64,Travel Expenses Wk 17,BD1 5HQ,ADMIN
FOOD STANDARDS AGENCY - Westminster,FOOD STANDARDS AGENCY - Westminster,2018-05-18,EXP - PURCHASE OF GOODS/SERVICES - SUBSISTENCE,OPERATIONS ASSURANCE DIVISION (PROGRAMME),REDFERN TRAVEL LTD,1011706064,514.05,TRAVEL EXPENSES  Wk 19,BD1 5HQ,PROGRAMME
FOOD STANDARDS AGENCY - Westminster,FOOD STANDARDS AGENCY - Westminster,2018-05-29,EXP - PURCHASE OF GOODS/SERVICES - RAIL TRAVEL,COMMS,REDFERN TRAVEL LTD,1011706126,513.4,Travel Expenses Wk 20,BD1 5HQ,ADMIN
FOOD STANDARDS AGENCY - Westminster,FOOD STANDARDS AGENCY - Westminster,2018-05-29,EXP - PURCHASE OF GOODS/SERVICES - RAIL TRAVEL,DIGITAL,REDFERN TRAVEL LTD,1011706126,482.6,Travel Expenses Wk 20,BD1 5HQ,ADMIN
FOOD STANDARDS AGENCY - Westminster,FOOD STANDARDS AGENCY - Westminster,2018-05-15,EXP - PURCHASE OF GOODS/SERVICES - SUBSISTENCE,FOOD INCIDENTS AND RESILIENCE PROG,REDFERN TRAVEL LTD,1011706022,482.35,Travel Expenses Wk 18,BD1 5HQ,PROGRAMME
FOOD STANDARDS AGENCY - Westminster,FOOD STANDARDS AGENCY - Westminster,2018-05-18,EXP - PURCHASE OF GOODS/SERVICES - RAIL TRAVEL,North 1,REDFERN TRAVEL LTD,1011706064,481.1,TRAVEL EXPENSES  Wk 19,BD1 5HQ,PROGRAMME
FOOD STANDARDS AGENCY - Westminster,FOOD STANDARDS AGENCY - Westminster,2018-05-15,EXP - PURCHASE OF GOODS/SERVICES - SUBSISTENCE,RESILIENCE ADMIN,REDFERN TRAVEL LTD,1011706022,467.8,Travel Expenses Wk 18,BD1 5HQ,ADMIN
FOOD STANDARDS AGENCY - Westminster,FOOD STANDARDS AGENCY - Westminster,2018-05-15,EXP - PURCHASE OF GOODS/SERVICES - RAIL TRAVEL,ANALYSIS & RESEARCH BRANCH,REDFERN TRAVEL LTD,1011706022,461.4,Travel Expenses Wk 18,BD1 5HQ,ADMIN
FOOD STANDARDS AGENCY - Westminster,FOOD STANDARDS AGENCY - Westminster,2018-05-01,EXP - PURCHASE OF GOODS/SERVICES - SUBSISTENCE,NON MEAT FIELD OPS,REDFERN TRAVEL LTD,1011705889,458.95,Travel Expenses Wk 16,BD1 5HQ,PROGRAMME
FOOD STANDARDS AGENCY - Westminster,FOOD STANDARDS AGENCY - Westminster,2018-05-08,EXP - PURCHASE OF GOODS/SERVICES -  FOREIGN AIR TRAVEL,SCIENTIFIC METHODS AND LABORATORY POLICY,REDFERN TRAVEL LTD,1011705948,455.71,Travel Expenses Wk 17,BD1 5HQ,ADMIN
FOOD STANDARDS AGENCY - Westminster,FOOD STANDARDS AGENCY - Westminster,2018-05-15,EXP - PURCHASE OF GOODS/SERVICES - RAIL TRAVEL,FOOD INCIDENTS AND RESILIENCE PROG,REDFERN TRAVEL LTD,1011706022,455.5,Travel Expenses Wk 18,BD1 5HQ,PROGRAMME
FOOD STANDARDS AGENCY - Westminster,FOOD STANDARDS AGENCY - Westminster,2018-05-08,EXP - PURCHASE OF GOODS/SERVICES - RAIL TRAVEL,CORPORATE SUPPORT UNIT,REDFERN TRAVEL LTD,1011705948,455.4,Travel Expenses Wk 17,BD1 5HQ,ADMIN
FOOD STANDARDS AGENCY - Westminster,FOOD STANDARDS AGENCY - Westminster,2018-05-08,EXP - PURCHASE OF GOODS/SERVICES - RAIL TRAVEL,ALLERGY & INTOLERANCE,REDFERN TRAVEL LTD,1011705948,454.7,Travel Expenses Wk 17,BD1 5HQ,ADMIN
FOOD STANDARDS AGENCY - Westminster,FOOD STANDARDS AGENCY - Westminster,2018-05-15,EXP - PURCHASE OF GOODS/SERVICES - AIR TRAVEL,REGULATING OUR FUTURE,REDFERN TRAVEL LTD,1011706022,454.13,Travel Expenses Wk 18,BD1 5HQ,ADMIN
FOOD STANDARDS AGENCY - Westminster,FOOD STANDARDS AGENCY - Westminster,2018-05-15,EXP - PURCHASE OF GOODS/SERVICES - SUBSISTENCE,INFORMATION & KNOWLEDGE MANAGMENT,REDFERN TRAVEL LTD,1011706022,443,Travel Expenses Wk 18,BD1 5HQ,ADMIN
FOOD STANDARDS AGENCY - Westminster,FOOD STANDARDS AGENCY - Westminster,2018-05-15,EXP - PURCHASE OF GOODS/SERVICES - SUBSISTENCE,NON MEAT FIELD OPS,REDFERN TRAVEL LTD,1011706022,442.73,Travel Expenses Wk 18,BD1 5HQ,PROGRAMME
FOOD STANDARDS AGENCY - Westminster,FOOD STANDARDS AGENCY - Westminster,2018-05-01,EXP - PURCHASE OF GOODS/SERVICES - RAIL TRAVEL,East 3,REDFERN TRAVEL LTD,1011705889,434.8,Travel Expenses Wk 16,BD1 5HQ,PROGRAMME
FOOD STANDARDS AGENCY - Westminster,FOOD STANDARDS AGENCY - Westminster,2018-05-08,EXP - PURCHASE OF GOODS/SERVICES - SUBSISTENCE,Wales and West 3 ,REDFERN TRAVEL LTD,1011705948,425.73,Travel Expenses Wk 17,BD1 5HQ,PROGRAMME
FOOD STANDARDS AGENCY - Westminster,FOOD STANDARDS AGENCY - Westminster,2018-05-18,EXP - PURCHASE OF GOODS/SERVICES - SUBSISTENCE,REGULATORY DELIVERY,REDFERN TRAVEL LTD,1011706064,420.8,TRAVEL EXPENSES  Wk 19,BD1 5HQ,ADMIN
FOOD STANDARDS AGENCY - Westminster,FOOD STANDARDS AGENCY - Westminster,2018-05-18,EXP - PURCHASE OF GOODS/SERVICES - AIR TRAVEL,OPERATIONS ASSURANCE DIVISION (PROGRAMME),REDFERN TRAVEL LTD,1011706064,412.81,TRAVEL EXPENSES  Wk 19,BD1 5HQ,PROGRAMME
FOOD STANDARDS AGENCY - Westminster,FOOD STANDARDS AGENCY - Westminster,2018-05-18,EXP - PURCHASE OF GOODS/SERVICES - SUBSISTENCE,ORGANISATIONAL DEVELOPMENT,REDFERN TRAVEL LTD,1011706064,408.14,TRAVEL EXPENSES  Wk 19,BD1 5HQ,ADMIN
FOOD STANDARDS AGENCY - Westminster,FOOD STANDARDS AGENCY - Westminster,2018-05-01,EXP - PURCHASE OF GOODS/SERVICES - SUBSISTENCE,Wales and West 3 ,REDFERN TRAVEL LTD,1011705889,407.4,Travel Expenses Wk 16,BD1 5HQ,PROGRAMME
FOOD STANDARDS AGENCY - Westminster,FOOD STANDARDS AGENCY - Westminster,2018-05-01,EXP - PURCHASE OF GOODS/SERVICES - RAIL TRAVEL,Wales and West 4 ,REDFERN TRAVEL LTD,1011705889,401.3,Travel Expenses Wk 16,BD1 5HQ,PROGRAMME
FOOD STANDARDS AGENCY - Westminster,FOOD STANDARDS AGENCY - Westminster,2018-05-08,EXP - PURCHASE OF GOODS/SERVICES - AIR TRAVEL,ORGANISATIONAL DEVELOPMENT,REDFERN TRAVEL LTD,1011705948,399.98,Travel Expenses Wk 17,BD1 5HQ,ADMIN
FOOD STANDARDS AGENCY - Westminster,FOOD STANDARDS AGENCY - Westminster,2018-05-01,EXP - PURCHASE OF GOODS/SERVICES - RAIL TRAVEL,CHIEF EXECUTIVE & PRIVATE OFFICE,REDFERN TRAVEL LTD,1011705889,386.8,Travel Expenses Wk 16,BD1 5HQ,ADMIN
FOOD STANDARDS AGENCY - Westminster,FOOD STANDARDS AGENCY - Westminster,2018-05-01,EXP - PURCHASE OF GOODS/SERVICES - RAIL TRAVEL,REGULATORY & INTERNATIONAL,REDFERN TRAVEL LTD,1011705889,386,Travel Expenses Wk 16,BD1 5HQ,ADMIN
FOOD STANDARDS AGENCY - Westminster,FOOD STANDARDS AGENCY - Westminster,2018-05-01,EXP - PURCHASE OF GOODS/SERVICES - RAIL TRAVEL,NON MEAT FIELD OPS,REDFERN TRAVEL LTD,1011705889,385.5,Travel Expenses Wk 16,BD1 5HQ,PROGRAMME
FOOD STANDARDS AGENCY - Westminster,FOOD STANDARDS AGENCY - Westminster,2018-05-08,EXP - PURCHASE OF GOODS/SERVICES - RAIL TRAVEL,Wales and West 1 (England),REDFERN TRAVEL LTD,1011705948,382.5,Travel Expenses Wk 17,BD1 5HQ,PROGRAMME
FOOD STANDARDS AGENCY - Westminster,FOOD STANDARDS AGENCY - Westminster,2018-05-01,EXP - PURCHASE OF GOODS/SERVICES - SUBSISTENCE,IT STRATEGY & DEVELOPMENT,REDFERN TRAVEL LTD,1011705889,381.49,Travel Expenses Wk 16,BD1 5HQ,ADMIN
FOOD STANDARDS AGENCY - Westminster,FOOD STANDARDS AGENCY - Westminster,2018-05-15,EXP - PURCHASE OF GOODS/SERVICES - RAIL TRAVEL,PROCUREMENT,REDFERN TRAVEL LTD,1011706022,379.6,Travel Expenses Wk 18,BD1 5HQ,ADMIN
FOOD STANDARDS AGENCY - Westminster,FOOD STANDARDS AGENCY - Westminster,2018-05-29,EXP - PURCHASE OF GOODS/SERVICES - SUBSISTENCE,CORPORATE SUPPORT UNIT,REDFERN TRAVEL LTD,1011706126,375.6,Travel Expenses Wk 20,BD1 5HQ,ADMIN
FOOD STANDARDS AGENCY - Westminster,FOOD STANDARDS AGENCY - Westminster,2018-05-29,EXP - PURCHASE OF GOODS/SERVICES - SUBSISTENCE,REGULATING OUR FUTURE,REDFERN TRAVEL LTD,1011706126,374.2,Travel Expenses Wk 20,BD1 5HQ,ADMIN
FOOD STANDARDS AGENCY - Westminster,FOOD STANDARDS AGENCY - Westminster,2018-05-15,EXP - PURCHASE OF GOODS/SERVICES - RAIL TRAVEL,FOOD CRIME UNIT ADMIN,REDFERN TRAVEL LTD,1011706022,371.8,Travel Expenses Wk 18,BD1 5HQ,ADMIN
FOOD STANDARDS AGENCY - Westminster,FOOD STANDARDS AGENCY - Westminster,2018-05-29,EXP - PURCHASE OF GOODS/SERVICES - RAIL TRAVEL,"RADIOLOGICAL, NOVEL FOOD & PROCESSES",REDFERN TRAVEL LTD,1011706126,371.65,Travel Expenses Wk 20,BD1 5HQ,ADMIN
FOOD STANDARDS AGENCY - Westminster,FOOD STANDARDS AGENCY - Westminster,2018-05-08,EXP - PURCHASE OF GOODS/SERVICES - SUBSISTENCE,CHIEF EXECUTIVE & PRIVATE OFFICE,REDFERN TRAVEL LTD,1011705948,367.15,Travel Expenses Wk 17,BD1 5HQ,ADMIN
FOOD STANDARDS AGENCY - Westminster,FOOD STANDARDS AGENCY - Westminster,2018-05-15,EXP - PURCHASE OF GOODS/SERVICES - RAIL TRAVEL,REGULATORY & INTERNATIONAL,REDFERN TRAVEL LTD,1011706022,362.1,Travel Expenses Wk 18,BD1 5HQ,ADMIN
FOOD STANDARDS AGENCY - Westminster,FOOD STANDARDS AGENCY - Westminster,2018-05-01,EXP - PURCHASE OF GOODS/SERVICES - SUBSISTENCE,"PLANNING, PERFORMANCE & CHANGE",REDFERN TRAVEL LTD,1011705889,361,Travel Expenses Wk 16,BD1 5HQ,ADMIN
FOOD STANDARDS AGENCY - Westminster,FOOD STANDARDS AGENCY - Westminster,2018-05-18,EXP - PURCHASE OF GOODS/SERVICES - AIR TRAVEL,FOOD INCIDENTS AND RESILIENCE PROG,REDFERN TRAVEL LTD,1011706064,360.44,TRAVEL EXPENSES  Wk 19,BD1 5HQ,PROGRAMME
FOOD STANDARDS AGENCY - Westminster,FOOD STANDARDS AGENCY - Westminster,2018-05-15,EXP - PURCHASE OF GOODS/SERVICES - RAIL TRAVEL,Wales and West 4 ,REDFERN TRAVEL LTD,1011706022,355.87,Travel Expenses Wk 18,BD1 5HQ,PROGRAMME
FOOD STANDARDS AGENCY - Westminster,FOOD STANDARDS AGENCY - Westminster,2018-05-29,EXP - PURCHASE OF GOODS/SERVICES - SUBSISTENCE,Wales and West 2 (Wales),REDFERN TRAVEL LTD,1011706126,355.32,Travel Expenses Wk 20,BD1 5HQ,PROGRAMME
FOOD STANDARDS AGENCY - Westminster,FOOD STANDARDS AGENCY - Westminster,2018-05-01,EXP - PURCHASE OF GOODS/SERVICES - AIR TRAVEL,COMMS,REDFERN TRAVEL LTD,1011705889,352.59,Travel Expenses Wk 16,BD1 5HQ,ADMIN
FOOD STANDARDS AGENCY - Westminster,FOOD STANDARDS AGENCY - Westminster,2018-05-15,EXP - PURCHASE OF GOODS/SERVICES - SUBSISTENCE,DIGITAL,REDFERN TRAVEL LTD,1011706022,347.1,Travel Expenses Wk 18,BD1 5HQ,ADMIN
FOOD STANDARDS AGENCY - Westminster,FOOD STANDARDS AGENCY - Westminster,2018-05-08,EXP - PURCHASE OF GOODS/SERVICES - AIR TRAVEL,ANALYSIS & RESEARCH BRANCH,REDFERN TRAVEL LTD,1011705948,346.18,Travel Expenses Wk 17,BD1 5HQ,ADMIN
FOOD STANDARDS AGENCY - Westminster,FOOD STANDARDS AGENCY - Westminster,2018-05-29,EXP - PURCHASE OF GOODS/SERVICES - RAIL TRAVEL,"PLANNING, PERFORMANCE & CHANGE",REDFERN TRAVEL LTD,1011706126,346.1,Travel Expenses Wk 20,BD1 5HQ,ADMIN
FOOD STANDARDS AGENCY - Westminster,FOOD STANDARDS AGENCY - Westminster,2018-05-18,EXP - PURCHASE OF GOODS/SERVICES - RAIL TRAVEL,"RADIOLOGICAL, NOVEL FOOD & PROCESSES",REDFERN TRAVEL LTD,1011706064,344.3,TRAVEL EXPENSES  Wk 19,BD1 5HQ,ADMIN
FOOD STANDARDS AGENCY - Westminster,FOOD STANDARDS AGENCY - Westminster,2018-05-18,EXP - PURCHASE OF GOODS/SERVICES - AIR TRAVEL,"PLANNING, PERFORMANCE & CHANGE",REDFERN TRAVEL LTD,1011706064,341.44,TRAVEL EXPENSES  Wk 19,BD1 5HQ,ADMIN
FOOD STANDARDS AGENCY - Westminster,FOOD STANDARDS AGENCY - Westminster,2018-05-01,EXP - PURCHASE OF GOODS/SERVICES - RAIL TRAVEL,INTERNAL AUDIT,REDFERN TRAVEL LTD,1011705889,339.9,Travel Expenses Wk 16,BD1 5HQ,ADMIN
FOOD STANDARDS AGENCY - Westminster,FOOD STANDARDS AGENCY - Westminster,2018-05-18,EXP - PURCHASE OF GOODS/SERVICES -  FOREIGN AIR TRAVEL,"RADIOLOGICAL, NOVEL FOOD & PROCESSES",REDFERN TRAVEL LTD,1011706064,338.6,TRAVEL EXPENSES  Wk 19,BD1 5HQ,ADMIN
FOOD STANDARDS AGENCY - Westminster,FOOD STANDARDS AGENCY - Westminster,2018-05-15,EXP - PURCHASE OF GOODS/SERVICES - RAIL TRAVEL,INPORT & EXPORTS TEAM,REDFERN TRAVEL LTD,1011706022,338.5,Travel Expenses Wk 18,BD1 5HQ,ADMIN
FOOD STANDARDS AGENCY - Westminster,FOOD STANDARDS AGENCY - Westminster,2018-05-15,EXP - PURCHASE OF GOODS/SERVICES - FOREIGN SUBSISTENCE,MEAT HYGIENE POLICY,REDFERN TRAVEL LTD,1011706022,323.5,Travel Expenses Wk 18,BD1 5HQ,ADMIN
FOOD STANDARDS AGENCY - Westminster,FOOD STANDARDS AGENCY - Westminster,2018-05-18,EXP - PURCHASE OF GOODS/SERVICES - RAIL TRAVEL,CHIEF SCIENTIST  ,REDFERN TRAVEL LTD,1011706064,322.5,TRAVEL EXPENSES  Wk 19,BD1 5HQ,ADMIN
FOOD STANDARDS AGENCY - Westminster,FOOD STANDARDS AGENCY - Westminster,2018-05-08,EXP - PURCHASE OF GOODS/SERVICES - RAIL TRAVEL,"PLANNING, PERFORMANCE & CHANGE",REDFERN TRAVEL LTD,1011705948,320.4,Travel Expenses Wk 17,BD1 5HQ,ADMIN
FOOD STANDARDS AGENCY - Westminster,FOOD STANDARDS AGENCY - Westminster,2018-05-15,EXP - PURCHASE OF GOODS/SERVICES - SUBSISTENCE,CORPORATE SUPPORT UNIT,REDFERN TRAVEL LTD,1011706022,318.92,Travel Expenses Wk 18,BD1 5HQ,ADMIN
FOOD STANDARDS AGENCY - Westminster,FOOD STANDARDS AGENCY - Westminster,2018-05-15,EXP - PURCHASE OF GOODS/SERVICES - RAIL TRAVEL,CHIEF EXECUTIVE & PRIVATE OFFICE,REDFERN TRAVEL LTD,1011706022,317.3,Travel Expenses Wk 18,BD1 5HQ,ADMIN
FOOD STANDARDS AGENCY - Westminster,FOOD STANDARDS AGENCY - Westminster,2018-05-18,EXP - PURCHASE OF GOODS/SERVICES - SUBSISTENCE,"RADIOLOGICAL, NOVEL FOOD & PROCESSES",REDFERN TRAVEL LTD,1011706064,316.2,TRAVEL EXPENSES  Wk 19,BD1 5HQ,ADMIN
FOOD STANDARDS AGENCY - Westminster,FOOD STANDARDS AGENCY - Westminster,2018-05-15,EXP - PURCHASE OF GOODS/SERVICES - SUBSISTENCE,LEGAL  BRANCH A & INVESTIGATIONS,REDFERN TRAVEL LTD,1011706022,303.75,Travel Expenses Wk 18,BD1 5HQ,ADMIN
FOOD STANDARDS AGENCY - Westminster,FOOD STANDARDS AGENCY - Westminster,2018-05-15,EXP - PURCHASE OF GOODS/SERVICES - RAIL TRAVEL,CHIEF SCIENTIST  ,REDFERN TRAVEL LTD,1011706022,300.9,Travel Expenses Wk 18,BD1 5HQ,ADMIN
FOOD STANDARDS AGENCY - Westminster,FOOD STANDARDS AGENCY - Westminster,2018-05-18,EXP - PURCHASE OF GOODS/SERVICES - RAIL TRAVEL,Wales and West 1 (England),REDFERN TRAVEL LTD,1011706064,300.3,TRAVEL EXPENSES  Wk 19,BD1 5HQ,PROGRAMME
FOOD STANDARDS AGENCY - Westminster,FOOD STANDARDS AGENCY - Westminster,2018-05-29,EXP - PURCHASE OF GOODS/SERVICES - RAIL TRAVEL,FOOD CRIME UNIT ADMIN,REDFERN TRAVEL LTD,1011706126,297.8,Travel Expenses Wk 20,BD1 5HQ,ADMIN
FOOD STANDARDS AGENCY - Westminster,FOOD STANDARDS AGENCY - Westminster,2018-05-29,EXP - PURCHASE OF GOODS/SERVICES - SUBSISTENCE,Wales and West 1 (England),REDFERN TRAVEL LTD,1011706126,293.04,Travel Expenses Wk 20,BD1 5HQ,PROGRAMME
FOOD STANDARDS AGENCY - Westminster,FOOD STANDARDS AGENCY - Westminster,2018-05-18,EXP - PURCHASE OF GOODS/SERVICES - SUBSISTENCE,FOOD INCIDENTS AND RESILIENCE PROG,REDFERN TRAVEL LTD,1011706064,292.25,TRAVEL EXPENSES  Wk 19,BD1 5HQ,PROGRAMME
FOOD STANDARDS AGENCY - Westminster,FOOD STANDARDS AGENCY - Westminster,2018-05-29,EXP - PURCHASE OF GOODS/SERVICES - RAIL TRAVEL,Wales and West 3 ,REDFERN TRAVEL LTD,1011706126,290.1,Travel Expenses Wk 20,BD1 5HQ,PROGRAMME
FOOD STANDARDS AGENCY - Westminster,FOOD STANDARDS AGENCY - Westminster,2018-05-01,EXP - PURCHASE OF GOODS/SERVICES - AIR TRAVEL,REGULATORY & INTERNATIONAL,REDFERN TRAVEL LTD,1011705889,288,Travel Expenses Wk 16,BD1 5HQ,ADMIN
FOOD STANDARDS AGENCY - Westminster,FOOD STANDARDS AGENCY - Westminster,2018-05-08,EXP - PURCHASE OF GOODS/SERVICES - RAIL TRAVEL,East 3,REDFERN TRAVEL LTD,1011705948,287.5,Travel Expenses Wk 17,BD1 5HQ,PROGRAMME
FOOD STANDARDS AGENCY - Westminster,FOOD STANDARDS AGENCY - Westminster,2018-05-08,EXP - PURCHASE OF GOODS/SERVICES - SUBSISTENCE,Wales and West 2 (Wales),REDFERN TRAVEL LTD,1011705948,285.03,Travel Expenses Wk 17,BD1 5HQ,PROGRAMME
FOOD STANDARDS AGENCY - Westminster,FOOD STANDARDS AGENCY - Westminster,2018-05-29,EXP - PURCHASE OF GOODS/SERVICES - RAIL TRAVEL,ALLERGY & INTOLERANCE,REDFERN TRAVEL LTD,1011706126,282.45,Travel Expenses Wk 20,BD1 5HQ,ADMIN
FOOD STANDARDS AGENCY - Westminster,FOOD STANDARDS AGENCY - Westminster,2018-05-18,EXP - PURCHASE OF GOODS/SERVICES - RAIL TRAVEL,REGULATING OUR FUTURE,REDFERN TRAVEL LTD,1011706064,278.1,TRAVEL EXPENSES  Wk 19,BD1 5HQ,ADMIN
FOOD STANDARDS AGENCY - Westminster,FOOD STANDARDS AGENCY - Westminster,2018-05-01,EXP - PURCHASE OF GOODS/SERVICES - RAIL TRAVEL,RESILIENCE ADMIN,REDFERN TRAVEL LTD,1011705889,271.1,Travel Expenses Wk 16,BD1 5HQ,ADMIN
FOOD STANDARDS AGENCY - Westminster,FOOD STANDARDS AGENCY - Westminster,2018-05-18,EXP - PURCHASE OF GOODS/SERVICES - AIR TRAVEL,PROGRAMME AND PROJECT DELIVERY,REDFERN TRAVEL LTD,1011706064,269.05,TRAVEL EXPENSES  Wk 19,BD1 5HQ,ADMIN
FOOD STANDARDS AGENCY - Westminster,FOOD STANDARDS AGENCY - Westminster,2018-05-01,EXP - PURCHASE OF GOODS/SERVICES - RAIL TRAVEL,FOOD ADDITIVES,REDFERN TRAVEL LTD,1011705889,268.95,Travel Expenses Wk 16,BD1 5HQ,ADMIN
FOOD STANDARDS AGENCY - Westminster,FOOD STANDARDS AGENCY - Westminster,2018-05-15,EXP - PURCHASE OF GOODS/SERVICES - AIR TRAVEL,FOOD CRIME UNIT ADMIN,REDFERN TRAVEL LTD,1011706022,266.02,Travel Expenses Wk 18,BD1 5HQ,ADMIN
FOOD STANDARDS AGENCY - Westminster,FOOD STANDARDS AGENCY - Westminster,2018-05-15,EXP - PURCHASE OF GOODS/SERVICES - RAIL TRAVEL,PROGRAMME AND PROJECT DELIVERY,REDFERN TRAVEL LTD,1011706022,264.9,Travel Expenses Wk 18,BD1 5HQ,ADMIN
FOOD STANDARDS AGENCY - Westminster,FOOD STANDARDS AGENCY - Westminster,2018-05-18,EXP - PURCHASE OF GOODS/SERVICES - SUBSISTENCE,Wales and West 4 ,REDFERN TRAVEL LTD,1011706064,263.85,TRAVEL EXPENSES  Wk 19,BD1 5HQ,PROGRAMME
FOOD STANDARDS AGENCY - Westminster,FOOD STANDARDS AGENCY - Westminster,2018-05-15,EXP - PURCHASE OF GOODS/SERVICES - SUBSISTENCE,INPORT & EXPORTS TEAM,REDFERN TRAVEL LTD,1011706022,263.7,Travel Expenses Wk 18,BD1 5HQ,ADMIN
FOOD STANDARDS AGENCY - Westminster,FOOD STANDARDS AGENCY - Westminster,2018-05-08,EXP - PURCHASE OF GOODS/SERVICES - AIR TRAVEL,"ANIMAL FEED, TSEs & ABPs",REDFERN TRAVEL LTD,1011705948,263,Travel Expenses Wk 17,BD1 5HQ,ADMIN
FOOD STANDARDS AGENCY - Westminster,FOOD STANDARDS AGENCY - Westminster,2018-05-01,EXP - PURCHASE OF GOODS/SERVICES - SUBSISTENCE,FOOD ADDITIVES,REDFERN TRAVEL LTD,1011705889,262.6,Travel Expenses Wk 16,BD1 5HQ,ADMIN
FOOD STANDARDS AGENCY - Westminster,FOOD STANDARDS AGENCY - Westminster,2018-05-08,EXP - PURCHASE OF GOODS/SERVICES - RAIL TRAVEL,CHIEF EXECUTIVE & PRIVATE OFFICE,REDFERN TRAVEL LTD,1011705948,260.1,Travel Expenses Wk 17,BD1 5HQ,ADMIN
FOOD STANDARDS AGENCY - Westminster,FOOD STANDARDS AGENCY - Westminster,2018-05-08,EXP - PURCHASE OF GOODS/SERVICES - AIR TRAVEL,INPORT & EXPORTS TEAM,REDFERN TRAVEL LTD,1011705948,258,Travel Expenses Wk 17,BD1 5HQ,ADMIN
FOOD STANDARDS AGENCY - Westminster,FOOD STANDARDS AGENCY - Westminster,2018-05-01,EXP - PURCHASE OF GOODS/SERVICES - SUBSISTENCE,COMMS,REDFERN TRAVEL LTD,1011705889,257.55,Travel Expenses Wk 16,BD1 5HQ,ADMIN
FOOD STANDARDS AGENCY - Westminster,FOOD STANDARDS AGENCY - Westminster,2018-05-18,EXP - PURCHASE OF GOODS/SERVICES - RAIL TRAVEL,Wales and West 2 (Wales),REDFERN TRAVEL LTD,1011706064,255.7,TRAVEL EXPENSES  Wk 19,BD1 5HQ,PROGRAMME
FOOD STANDARDS AGENCY - Westminster,FOOD STANDARDS AGENCY - Westminster,2018-05-08,EXP - PURCHASE OF GOODS/SERVICES - SUBSISTENCE,INPORT & EXPORTS TEAM,REDFERN TRAVEL LTD,1011705948,255.28,Travel Expenses Wk 17,BD1 5HQ,ADMIN
FOOD STANDARDS AGENCY - Westminster,FOOD STANDARDS AGENCY - Westminster,2018-05-18,EXP - PURCHASE OF GOODS/SERVICES - RAIL TRAVEL,IT SERVICE DELIVERY,REDFERN TRAVEL LTD,1011706064,254.3,TRAVEL EXPENSES  Wk 19,BD1 5HQ,ADMIN
FOOD STANDARDS AGENCY - Westminster,FOOD STANDARDS AGENCY - Westminster,2018-05-29,EXP - PURCHASE OF GOODS/SERVICES - AIR TRAVEL,CHIEF EXECUTIVE & PRIVATE OFFICE,REDFERN TRAVEL LTD,1011706126,254.07,Travel Expenses Wk 20,BD1 5HQ,ADMIN
FOOD STANDARDS AGENCY - Westminster,FOOD STANDARDS AGENCY - Westminster,2018-05-01,EXP - PURCHASE OF GOODS/SERVICES - SUBSISTENCE,REGULATING OUR FUTURE,REDFERN TRAVEL LTD,1011705889,251.8,Travel Expenses Wk 16,BD1 5HQ,ADMIN
FOOD STANDARDS AGENCY - Westminster,FOOD STANDARDS AGENCY - Westminster,2018-05-18,EXP - PURCHASE OF GOODS/SERVICES - SUBSISTENCE,DIGITAL,REDFERN TRAVEL LTD,1011706064,250.6,TRAVEL EXPENSES  Wk 19,BD1 5HQ,ADMIN
FOOD STANDARDS AGENCY - Westminster,FOOD STANDARDS AGENCY - Westminster,2018-05-08,EXP - PURCHASE OF GOODS/SERVICES - SUBSISTENCE,FINANCE BRANCH,REDFERN TRAVEL LTD,1011705948,248.7,Travel Expenses Wk 17,BD1 5HQ,ADMIN
FOOD STANDARDS AGENCY - Westminster,FOOD STANDARDS AGENCY - Westminster,2018-05-08,EXP - PURCHASE OF GOODS/SERVICES - RAIL TRAVEL,COMMS,REDFERN TRAVEL LTD,1011705948,245.9,Travel Expenses Wk 17,BD1 5HQ,ADMIN
FOOD STANDARDS AGENCY - Westminster,FOOD STANDARDS AGENCY - Westminster,2018-05-01,EXP - PURCHASE OF GOODS/SERVICES - RAIL TRAVEL,DIGITAL,REDFERN TRAVEL LTD,1011705889,243.1,Travel Expenses Wk 16,BD1 5HQ,ADMIN
FOOD STANDARDS AGENCY - Westminster,FOOD STANDARDS AGENCY - Westminster,2018-05-18,EXP - PURCHASE OF GOODS/SERVICES - SUBSISTENCE,CHEMICAL RISK ASSESSMENT UNIT,REDFERN TRAVEL LTD,1011706064,242.76,TRAVEL EXPENSES  Wk 19,BD1 5HQ,ADMIN
FOOD STANDARDS AGENCY - Westminster,FOOD STANDARDS AGENCY - Westminster,2018-05-08,EXP - PURCHASE OF GOODS/SERVICES -  FOREIGN AIR TRAVEL,FOOD ADDITIVES,REDFERN TRAVEL LTD,1011705948,242.2,Travel Expenses Wk 17,BD1 5HQ,ADMIN
FOOD STANDARDS AGENCY - Westminster,FOOD STANDARDS AGENCY - Westminster,2018-05-08,EXP - PURCHASE OF GOODS/SERVICES - SUBSISTENCE,FOOD CRIME UNIT PROG,REDFERN TRAVEL LTD,1011705948,241.9,Travel Expenses Wk 17,BD1 5HQ,PROGRAMME
FOOD STANDARDS AGENCY - Westminster,FOOD STANDARDS AGENCY - Westminster,2018-05-29,EXP - PURCHASE OF GOODS/SERVICES - SUBSISTENCE,"RADIOLOGICAL, NOVEL FOOD & PROCESSES",REDFERN TRAVEL LTD,1011706126,238.71,Travel Expenses Wk 20,BD1 5HQ,ADMIN
FOOD STANDARDS AGENCY - Westminster,FOOD STANDARDS AGENCY - Westminster,2018-05-01,EXP - PURCHASE OF GOODS/SERVICES - SUBSISTENCE,INFORMATION & KNOWLEDGE MANAGMENT,REDFERN TRAVEL LTD,1011705889,235.25,Travel Expenses Wk 16,BD1 5HQ,ADMIN
FOOD STANDARDS AGENCY - Westminster,FOOD STANDARDS AGENCY - Westminster,2018-05-15,EXP - PURCHASE OF GOODS/SERVICES - AIR TRAVEL,FOOD HYGIENE POLICY,REDFERN TRAVEL LTD,1011706022,235.16,Travel Expenses Wk 18,BD1 5HQ,ADMIN
FOOD STANDARDS AGENCY - Westminster,FOOD STANDARDS AGENCY - Westminster,2018-05-18,EXP - PURCHASE OF GOODS/SERVICES - AIR TRAVEL,INPORT & EXPORTS TEAM,REDFERN TRAVEL LTD,1011706064,235,TRAVEL EXPENSES  Wk 19,BD1 5HQ,ADMIN
FOOD STANDARDS AGENCY - Westminster,FOOD STANDARDS AGENCY - Westminster,2018-05-01,EXP - PURCHASE OF GOODS/SERVICES - AIR TRAVEL,INTERNAL AUDIT,REDFERN TRAVEL LTD,1011705889,234.93,Travel Expenses Wk 16,BD1 5HQ,ADMIN
FOOD STANDARDS AGENCY - Westminster,FOOD STANDARDS AGENCY - Westminster,2018-05-15,EXP - PURCHASE OF GOODS/SERVICES - SUBSISTENCE,Wales and West 3 ,REDFERN TRAVEL LTD,1011706022,234.8,Travel Expenses Wk 18,BD1 5HQ,PROGRAMME
FOOD STANDARDS AGENCY - Westminster,FOOD STANDARDS AGENCY - Westminster,2018-05-18,EXP - PURCHASE OF GOODS/SERVICES - SUBSISTENCE,REGULATORY & INTERNATIONAL,REDFERN TRAVEL LTD,1011706064,232.8,TRAVEL EXPENSES  Wk 19,BD1 5HQ,ADMIN
FOOD STANDARDS AGENCY - Westminster,FOOD STANDARDS AGENCY - Westminster,2018-05-15,EXP - PURCHASE OF GOODS/SERVICES - RAIL TRAVEL,East 4,REDFERN TRAVEL LTD,1011706022,231,Travel Expenses Wk 18,BD1 5HQ,PROGRAMME
FOOD STANDARDS AGENCY - Westminster,FOOD STANDARDS AGENCY - Westminster,2018-05-08,EXP - PURCHASE OF GOODS/SERVICES - FOREIGN SUBSISTENCE,CHIEF SCIENTIST  ,REDFERN TRAVEL LTD,1011705948,230.98,Travel Expenses Wk 17,BD1 5HQ,ADMIN
FOOD STANDARDS AGENCY - Westminster,FOOD STANDARDS AGENCY - Westminster,2018-05-29,EXP - PURCHASE OF GOODS/SERVICES - AIR TRAVEL,OPERATIONS ASSURANCE DIVISION (PROGRAMME),REDFERN TRAVEL LTD,1011706126,230.79,Travel Expenses Wk 20,BD1 5HQ,PROGRAMME
FOOD STANDARDS AGENCY - Westminster,FOOD STANDARDS AGENCY - Westminster,2018-05-15,EXP - PURCHASE OF GOODS/SERVICES - RAIL TRAVEL,CHEMICAL RISK ASSESSMENT UNIT,REDFERN TRAVEL LTD,1011706022,230.7,Travel Expenses Wk 18,BD1 5HQ,ADMIN
FOOD STANDARDS AGENCY - Westminster,FOOD STANDARDS AGENCY - Westminster,2018-05-08,EXP - PURCHASE OF GOODS/SERVICES - SUBSISTENCE,INFORMATION & KNOWLEDGE MANAGMENT,REDFERN TRAVEL LTD,1011705948,229.7,Travel Expenses Wk 17,BD1 5HQ,ADMIN
FOOD STANDARDS AGENCY - Westminster,FOOD STANDARDS AGENCY - Westminster,2018-05-15,EXP - PURCHASE OF GOODS/SERVICES - FOREIGN RAIL TRAVEL,DIGITAL,REDFERN TRAVEL LTD,1011706022,222.36,Travel Expenses Wk 18,BD1 5HQ,ADMIN
FOOD STANDARDS AGENCY - Westminster,FOOD STANDARDS AGENCY - Westminster,2018-05-08,EXP - PURCHASE OF GOODS/SERVICES - RAIL TRAVEL,CHEMICAL RISK ASSESSMENT UNIT,REDFERN TRAVEL LTD,1011705948,221.7,Travel Expenses Wk 17,BD1 5HQ,ADMIN
FOOD STANDARDS AGENCY - Westminster,FOOD STANDARDS AGENCY - Westminster,2018-05-29,EXP - PURCHASE OF GOODS/SERVICES - AIR TRAVEL,REGULATORY & INTERNATIONAL,REDFERN TRAVEL LTD,1011706126,219.24,Travel Expenses Wk 20,BD1 5HQ,ADMIN
FOOD STANDARDS AGENCY - Westminster,FOOD STANDARDS AGENCY - Westminster,2018-05-18,EXP - PURCHASE OF GOODS/SERVICES - SUBSISTENCE,COMMS,REDFERN TRAVEL LTD,1011706064,218.55,TRAVEL EXPENSES  Wk 19,BD1 5HQ,ADMIN
FOOD STANDARDS AGENCY - Westminster,FOOD STANDARDS AGENCY - Westminster,2018-05-08,EXP - PURCHASE OF GOODS/SERVICES - SUBSISTENCE,"PLANNING, PERFORMANCE & CHANGE",REDFERN TRAVEL LTD,1011705948,218.45,Travel Expenses Wk 17,BD1 5HQ,ADMIN
FOOD STANDARDS AGENCY - Westminster,FOOD STANDARDS AGENCY - Westminster,2018-05-15,EXP - PURCHASE OF GOODS/SERVICES - FOREIGN SUBSISTENCE,INFORMATION & KNOWLEDGE MANAGMENT,REDFERN TRAVEL LTD,1011706022,217.93,Travel Expenses Wk 18,BD1 5HQ,ADMIN
FOOD STANDARDS AGENCY - Westminster,FOOD STANDARDS AGENCY - Westminster,2018-05-08,EXP - PURCHASE OF GOODS/SERVICES - SUBSISTENCE,CHIEF SCIENTIST  ,REDFERN TRAVEL LTD,1011705948,215.55,Travel Expenses Wk 17,BD1 5HQ,ADMIN
FOOD STANDARDS AGENCY - Westminster,FOOD STANDARDS AGENCY - Westminster,2018-05-15,EXP - PURCHASE OF GOODS/SERVICES - SUBSISTENCE,Wales and West 4 ,REDFERN TRAVEL LTD,1011706022,214.65,Travel Expenses Wk 18,BD1 5HQ,PROGRAMME
FOOD STANDARDS AGENCY - Westminster,FOOD STANDARDS AGENCY - Westminster,2018-05-29,EXP - PURCHASE OF GOODS/SERVICES - RAIL TRAVEL,REGULATORY & INTERNATIONAL,REDFERN TRAVEL LTD,1011706126,213.2,Travel Expenses Wk 20,BD1 5HQ,ADMIN
FOOD STANDARDS AGENCY - Westminster,FOOD STANDARDS AGENCY - Westminster,2018-05-01,EXP - PURCHASE OF GOODS/SERVICES - AIR TRAVEL,REGULATORY DELIVERY,REDFERN TRAVEL LTD,1011705889,213.03,Travel Expenses Wk 16,BD1 5HQ,ADMIN
FOOD STANDARDS AGENCY - Westminster,FOOD STANDARDS AGENCY - Westminster,2018-05-01,EXP - PURCHASE OF GOODS/SERVICES - RAIL TRAVEL,FOOD INCIDENTS AND RESILIENCE PROG,REDFERN TRAVEL LTD,1011705889,212.4,Travel Expenses Wk 16,BD1 5HQ,PROGRAMME
FOOD STANDARDS AGENCY - Westminster,FOOD STANDARDS AGENCY - Westminster,2018-05-29,EXP - PURCHASE OF GOODS/SERVICES - RAIL TRAVEL,East 4,REDFERN TRAVEL LTD,1011706126,210.1,Travel Expenses Wk 20,BD1 5HQ,PROGRAMME
FOOD STANDARDS AGENCY - Westminster,FOOD STANDARDS AGENCY - Westminster,2018-05-29,EXP - PURCHASE OF GOODS/SERVICES - RAIL TRAVEL,RESILIENCE ADMIN,REDFERN TRAVEL LTD,1011706126,209.7,Travel Expenses Wk 20,BD1 5HQ,ADMIN
FOOD STANDARDS AGENCY - Westminster,FOOD STANDARDS AGENCY - Westminster,2018-05-18,EXP - PURCHASE OF GOODS/SERVICES - RAIL TRAVEL,Wales and West 3 ,REDFERN TRAVEL LTD,1011706064,207.7,TRAVEL EXPENSES  Wk 19,BD1 5HQ,PROGRAMME
FOOD STANDARDS AGENCY - Westminster,FOOD STANDARDS AGENCY - Westminster,2018-05-29,EXP - PURCHASE OF GOODS/SERVICES -  FOREIGN AIR TRAVEL,CHEMICAL RISK ASSESSMENT UNIT,REDFERN TRAVEL LTD,1011706126,207.54,Travel Expenses Wk 20,BD1 5HQ,ADMIN
FOOD STANDARDS AGENCY - Westminster,FOOD STANDARDS AGENCY - Westminster,2018-05-01,EXP - PURCHASE OF GOODS/SERVICES - AIR TRAVEL,"RADIOLOGICAL, NOVEL FOOD & PROCESSES",REDFERN TRAVEL LTD,1011705889,207.31,Travel Expenses Wk 16,BD1 5HQ,ADMIN
FOOD STANDARDS AGENCY - Westminster,FOOD STANDARDS AGENCY - Westminster,2018-05-18,EXP - PURCHASE OF GOODS/SERVICES - RAIL TRAVEL,Wales and West 4 ,REDFERN TRAVEL LTD,1011706064,206.2,TRAVEL EXPENSES  Wk 19,BD1 5HQ,PROGRAMME
FOOD STANDARDS AGENCY - Westminster,FOOD STANDARDS AGENCY - Westminster,2018-05-01,EXP - PURCHASE OF GOODS/SERVICES - RAIL TRAVEL,East 4,REDFERN TRAVEL LTD,1011705889,206,Travel Expenses Wk 16,BD1 5HQ,PROGRAMME
FOOD STANDARDS AGENCY - Westminster,FOOD STANDARDS AGENCY - Westminster,2018-05-01,EXP - PURCHASE OF GOODS/SERVICES - SUBSISTENCE,CORPORATE SUPPORT UNIT,REDFERN TRAVEL LTD,1011705889,204.4,Travel Expenses Wk 16,BD1 5HQ,ADMIN
FOOD STANDARDS AGENCY - Westminster,FOOD STANDARDS AGENCY - Westminster,2018-05-08,EXP - PURCHASE OF GOODS/SERVICES -  FOREIGN AIR TRAVEL,"AGRICULTURAL, PROCESS & ENVIRONMENTAL CONTAMINANTS",REDFERN TRAVEL LTD,1011705948,203,Travel Expenses Wk 17,BD1 5HQ,ADMIN
FOOD STANDARDS AGENCY - Westminster,FOOD STANDARDS AGENCY - Westminster,2018-05-15,EXP - PURCHASE OF GOODS/SERVICES - SUBSISTENCE,COMMS,REDFERN TRAVEL LTD,1011706022,200.2,Travel Expenses Wk 18,BD1 5HQ,ADMIN
FOOD STANDARDS AGENCY - Westminster,FOOD STANDARDS AGENCY - Westminster,2018-05-18,EXP - PURCHASE OF GOODS/SERVICES - AIR TRAVEL,REGULATORY & INTERNATIONAL,REDFERN TRAVEL LTD,1011706064,200,TRAVEL EXPENSES  Wk 19,BD1 5HQ,ADMIN
FOOD STANDARDS AGENCY - Westminster,FOOD STANDARDS AGENCY - Westminster,2018-05-15,EXP - PURCHASE OF GOODS/SERVICES - AIR TRAVEL,PROGRAMME AND PROJECT DELIVERY,REDFERN TRAVEL LTD,1011706022,199.54,Travel Expenses Wk 18,BD1 5HQ,ADMIN
FOOD STANDARDS AGENCY - Westminster,FOOD STANDARDS AGENCY - Westminster,2018-05-18,EXP - PURCHASE OF GOODS/SERVICES - AIR TRAVEL,SCIENTIFIC METHODS AND LABORATORY POLICY,REDFERN TRAVEL LTD,1011706064,198.13,TRAVEL EXPENSES  Wk 19,BD1 5HQ,ADMIN
FOOD STANDARDS AGENCY - Westminster,FOOD STANDARDS AGENCY - Westminster,2018-05-01,EXP - PURCHASE OF GOODS/SERVICES - SUBSISTENCE,INTERNAL AUDIT,REDFERN TRAVEL LTD,1011705889,194.83,Travel Expenses Wk 16,BD1 5HQ,ADMIN
FOOD STANDARDS AGENCY - Westminster,FOOD STANDARDS AGENCY - Westminster,2018-05-18,EXP - PURCHASE OF GOODS/SERVICES - SUBSISTENCE,REGULATING OUR FUTURE,REDFERN TRAVEL LTD,1011706064,194.05,TRAVEL EXPENSES  Wk 19,BD1 5HQ,ADMIN
FOOD STANDARDS AGENCY - Westminster,FOOD STANDARDS AGENCY - Westminster,2018-05-08,EXP - PURCHASE OF GOODS/SERVICES - RAIL TRAVEL,IT SERVICE DELIVERY,REDFERN TRAVEL LTD,1011705948,194,Travel Expenses Wk 17,BD1 5HQ,ADMIN
FOOD STANDARDS AGENCY - Westminster,FOOD STANDARDS AGENCY - Westminster,2018-05-08,EXP - PURCHASE OF GOODS/SERVICES - RAIL TRAVEL,"RADIOLOGICAL, NOVEL FOOD & PROCESSES",REDFERN TRAVEL LTD,1011705948,192.25,Travel Expenses Wk 17,BD1 5HQ,ADMIN
FOOD STANDARDS AGENCY - Westminster,FOOD STANDARDS AGENCY - Westminster,2018-05-08,EXP - PURCHASE OF GOODS/SERVICES - RAIL TRAVEL,Wales and West 4 ,REDFERN TRAVEL LTD,1011705948,191.9,Travel Expenses Wk 17,BD1 5HQ,PROGRAMME
FOOD STANDARDS AGENCY - Westminster,FOOD STANDARDS AGENCY - Westminster,2018-05-18,EXP - PURCHASE OF GOODS/SERVICES - RAIL TRAVEL,ALLERGY & INTOLERANCE,REDFERN TRAVEL LTD,1011706064,191.35,TRAVEL EXPENSES  Wk 19,BD1 5HQ,ADMIN
FOOD STANDARDS AGENCY - Westminster,FOOD STANDARDS AGENCY - Westminster,2018-05-18,EXP - PURCHASE OF GOODS/SERVICES - SUBSISTENCE,"AGRICULTURAL, PROCESS & ENVIRONMENTAL CONTAMINANTS",REDFERN TRAVEL LTD,1011706064,191.2,TRAVEL EXPENSES  Wk 19,BD1 5HQ,ADMIN
FOOD STANDARDS AGENCY - Westminster,FOOD STANDARDS AGENCY - Westminster,2018-05-29,EXP - PURCHASE OF GOODS/SERVICES - SUBSISTENCE,COMMS,REDFERN TRAVEL LTD,1011706126,190.6,Travel Expenses Wk 20,BD1 5HQ,ADMIN
FOOD STANDARDS AGENCY - Westminster,FOOD STANDARDS AGENCY - Westminster,2018-05-29,EXP - PURCHASE OF GOODS/SERVICES - SUBSISTENCE,ORGANISATIONAL DEVELOPMENT,REDFERN TRAVEL LTD,1011706126,189.2,Travel Expenses Wk 20,BD1 5HQ,ADMIN
FOOD STANDARDS AGENCY - Westminster,FOOD STANDARDS AGENCY - Westminster,2018-05-08,EXP - PURCHASE OF GOODS/SERVICES - SUBSISTENCE,"RADIOLOGICAL, NOVEL FOOD & PROCESSES",REDFERN TRAVEL LTD,1011705948,187.2,Travel Expenses Wk 17,BD1 5HQ,ADMIN
FOOD STANDARDS AGENCY - Westminster,FOOD STANDARDS AGENCY - Westminster,2018-05-08,EXP - PURCHASE OF GOODS/SERVICES - SUBSISTENCE,Wales and West 2 (England),REDFERN TRAVEL LTD,1011705948,183.24,Travel Expenses Wk 17,BD1 5HQ,PROGRAMME
FOOD STANDARDS AGENCY - Westminster,FOOD STANDARDS AGENCY - Westminster,2018-05-01,EXP - PURCHASE OF GOODS/SERVICES - SUBSISTENCE,Wales and West 2 (Wales),REDFERN TRAVEL LTD,1011705889,183.24,Travel Expenses Wk 16,BD1 5HQ,PROGRAMME
FOOD STANDARDS AGENCY - Westminster,FOOD STANDARDS AGENCY - Westminster,2018-05-29,EXP - PURCHASE OF GOODS/SERVICES - RAIL TRAVEL,CORPORATE SUPPORT UNIT,REDFERN TRAVEL LTD,1011706126,182,Travel Expenses Wk 20,BD1 5HQ,ADMIN
FOOD STANDARDS AGENCY - Westminster,FOOD STANDARDS AGENCY - Westminster,2018-05-18,EXP - PURCHASE OF GOODS/SERVICES - RAIL TRAVEL,"ANIMAL FEED, TSEs & ABPs",REDFERN TRAVEL LTD,1011706064,178.25,TRAVEL EXPENSES  Wk 19,BD1 5HQ,ADMIN
FOOD STANDARDS AGENCY - Westminster,FOOD STANDARDS AGENCY - Westminster,2018-05-01,EXP - PURCHASE OF GOODS/SERVICES - RAIL TRAVEL,FOOD CRIME UNIT ADMIN,REDFERN TRAVEL LTD,1011705889,177.6,Travel Expenses Wk 16,BD1 5HQ,ADMIN
FOOD STANDARDS AGENCY - Westminster,FOOD STANDARDS AGENCY - Westminster,2018-05-08,EXP - PURCHASE OF GOODS/SERVICES - RAIL TRAVEL,FOODBORNE DISEASE CONTROL,REDFERN TRAVEL LTD,1011705948,177,Travel Expenses Wk 17,BD1 5HQ,ADMIN
FOOD STANDARDS AGENCY - Westminster,FOOD STANDARDS AGENCY - Westminster,2018-05-18,EXP - PURCHASE OF GOODS/SERVICES - AIR TRAVEL,COMMS,REDFERN TRAVEL LTD,1011706064,176.95,TRAVEL EXPENSES  Wk 19,BD1 5HQ,ADMIN
FOOD STANDARDS AGENCY - Westminster,FOOD STANDARDS AGENCY - Westminster,2018-05-08,EXP - PURCHASE OF GOODS/SERVICES -  FOREIGN AIR TRAVEL,FOOD INCIDENTS AND RESILIENCE PROG,REDFERN TRAVEL LTD,1011705948,176,Travel Expenses Wk 17,BD1 5HQ,PROGRAMME
FOOD STANDARDS AGENCY - Westminster,FOOD STANDARDS AGENCY - Westminster,2018-05-18,EXP - PURCHASE OF GOODS/SERVICES - AIR TRAVEL,FOOD ADDITIVES,REDFERN TRAVEL LTD,1011706064,172.18,TRAVEL EXPENSES  Wk 19,BD1 5HQ,ADMIN
FOOD STANDARDS AGENCY - Westminster,FOOD STANDARDS AGENCY - Westminster,2018-05-18,EXP - PURCHASE OF GOODS/SERVICES - SUBSISTENCE,FINANCE BRANCH,REDFERN TRAVEL LTD,1011706064,171.41,TRAVEL EXPENSES  Wk 19,BD1 5HQ,ADMIN
FOOD STANDARDS AGENCY - Westminster,FOOD STANDARDS AGENCY - Westminster,2018-05-18,EXP - PURCHASE OF GOODS/SERVICES - RAIL TRAVEL,North 3,REDFERN TRAVEL LTD,1011706064,168,TRAVEL EXPENSES  Wk 19,BD1 5HQ,PROGRAMME
FOOD STANDARDS AGENCY - Westminster,FOOD STANDARDS AGENCY - Westminster,2018-05-29,EXP - PURCHASE OF GOODS/SERVICES - SUBSISTENCE,PROGRAMME AND PROJECT DELIVERY,REDFERN TRAVEL LTD,1011706126,165.6,Travel Expenses Wk 20,BD1 5HQ,ADMIN
FOOD STANDARDS AGENCY - Westminster,FOOD STANDARDS AGENCY - Westminster,2018-05-29,EXP - PURCHASE OF GOODS/SERVICES - AIR TRAVEL,REGULATORY DELIVERY,REDFERN TRAVEL LTD,1011706126,165.47,Travel Expenses Wk 20,BD1 5HQ,ADMIN
FOOD STANDARDS AGENCY - Westminster,FOOD STANDARDS AGENCY - Westminster,2018-05-01,EXP - PURCHASE OF GOODS/SERVICES - SUBSISTENCE,FOOD CRIME UNIT ADMIN,REDFERN TRAVEL LTD,1011705889,165.43,Travel Expenses Wk 16,BD1 5HQ,ADMIN
FOOD STANDARDS AGENCY - Westminster,FOOD STANDARDS AGENCY - Westminster,2018-05-29,EXP - PURCHASE OF GOODS/SERVICES - RAIL TRAVEL,North 2,REDFERN TRAVEL LTD,1011706126,165.25,Travel Expenses Wk 20,BD1 5HQ,PROGRAMME
FOOD STANDARDS AGENCY - Westminster,FOOD STANDARDS AGENCY - Westminster,2018-05-29,EXP - PURCHASE OF GOODS/SERVICES - SUBSISTENCE,North 1,REDFERN TRAVEL LTD,1011706126,163.2,Travel Expenses Wk 20,BD1 5HQ,PROGRAMME
FOOD STANDARDS AGENCY - Westminster,FOOD STANDARDS AGENCY - Westminster,2018-05-18,EXP - PURCHASE OF GOODS/SERVICES - RAIL TRAVEL,North 2,REDFERN TRAVEL LTD,1011706064,163.15,TRAVEL EXPENSES  Wk 19,BD1 5HQ,PROGRAMME
FOOD STANDARDS AGENCY - Westminster,FOOD STANDARDS AGENCY - Westminster,2018-05-15,EXP - PURCHASE OF GOODS/SERVICES - RAIL TRAVEL,IT STRATEGY & DEVELOPMENT,REDFERN TRAVEL LTD,1011706022,160.9,Travel Expenses Wk 18,BD1 5HQ,ADMIN
FOOD STANDARDS AGENCY - Westminster,FOOD STANDARDS AGENCY - Westminster,2018-05-01,EXP - PURCHASE OF GOODS/SERVICES - RAIL TRAVEL,FOOD CRIME UNIT PROG,REDFERN TRAVEL LTD,1011705889,160.8,Travel Expenses Wk 16,BD1 5HQ,PROGRAMME
FOOD STANDARDS AGENCY - Westminster,FOOD STANDARDS AGENCY - Westminster,2018-05-08,EXP - PURCHASE OF GOODS/SERVICES - SUBSISTENCE,INTERNAL AUDIT,REDFERN TRAVEL LTD,1011705948,158.79,Travel Expenses Wk 17,BD1 5HQ,ADMIN
FOOD STANDARDS AGENCY - Westminster,FOOD STANDARDS AGENCY - Westminster,2018-05-08,EXP - PURCHASE OF GOODS/SERVICES - SUBSISTENCE,LEGAL  BRANCH A & INVESTIGATIONS,REDFERN TRAVEL LTD,1011705948,158.5,Travel Expenses Wk 17,BD1 5HQ,ADMIN
FOOD STANDARDS AGENCY - Westminster,FOOD STANDARDS AGENCY - Westminster,2018-05-01,EXP - PURCHASE OF GOODS/SERVICES - AIR TRAVEL,"PLANNING, PERFORMANCE & CHANGE",REDFERN TRAVEL LTD,1011705889,157.54,Travel Expenses Wk 16,BD1 5HQ,ADMIN
FOOD STANDARDS AGENCY - Westminster,FOOD STANDARDS AGENCY - Westminster,2018-05-18,EXP - PURCHASE OF GOODS/SERVICES - AIR TRAVEL,REGULATORY DELIVERY,REDFERN TRAVEL LTD,1011706064,155.3,TRAVEL EXPENSES  Wk 19,BD1 5HQ,ADMIN
FOOD STANDARDS AGENCY - Westminster,FOOD STANDARDS AGENCY - Westminster,2018-05-29,EXP - PURCHASE OF GOODS/SERVICES - SUBSISTENCE,IT SERVICE DELIVERY,REDFERN TRAVEL LTD,1011706126,155.2,Travel Expenses Wk 20,BD1 5HQ,ADMIN
FOOD STANDARDS AGENCY - Westminster,FOOD STANDARDS AGENCY - Westminster,2018-05-15,EXP - PURCHASE OF GOODS/SERVICES - AIR TRAVEL,OPERATIONS ASSURANCE DIVISION (PROGRAMME),REDFERN TRAVEL LTD,1011706022,154.61,Travel Expenses Wk 18,BD1 5HQ,PROGRAMME
FOOD STANDARDS AGENCY - Westminster,FOOD STANDARDS AGENCY - Westminster,2018-05-15,EXP - PURCHASE OF GOODS/SERVICES -  FOREIGN AIR TRAVEL,"RADIOLOGICAL, NOVEL FOOD & PROCESSES",REDFERN TRAVEL LTD,1011706022,148,Travel Expenses Wk 18,BD1 5HQ,ADMIN
FOOD STANDARDS AGENCY - Westminster,FOOD STANDARDS AGENCY - Westminster,2018-05-08,EXP - PURCHASE OF GOODS/SERVICES - RAIL TRAVEL,East 4,REDFERN TRAVEL LTD,1011705948,146.9,Travel Expenses Wk 17,BD1 5HQ,PROGRAMME
FOOD STANDARDS AGENCY - Westminster,FOOD STANDARDS AGENCY - Westminster,2018-05-29,EXP - PURCHASE OF GOODS/SERVICES - SUBSISTENCE,FINANCE BRANCH,REDFERN TRAVEL LTD,1011706126,145.6,Travel Expenses Wk 20,BD1 5HQ,ADMIN
FOOD STANDARDS AGENCY - Westminster,FOOD STANDARDS AGENCY - Westminster,2018-05-01,EXP - PURCHASE OF GOODS/SERVICES -  FOREIGN AIR TRAVEL,MEAT HYGIENE POLICY,REDFERN TRAVEL LTD,1011705889,145.35,Travel Expenses Wk 16,BD1 5HQ,ADMIN
FOOD STANDARDS AGENCY - Westminster,FOOD STANDARDS AGENCY - Westminster,2018-05-01,EXP - PURCHASE OF GOODS/SERVICES - FOREIGN SUBSISTENCE,SCIENTIFIC METHODS AND LABORATORY POLICY,REDFERN TRAVEL LTD,1011705889,144.94,Travel Expenses Wk 16,BD1 5HQ,ADMIN
FOOD STANDARDS AGENCY - Westminster,FOOD STANDARDS AGENCY - Westminster,2018-05-18,EXP - PURCHASE OF GOODS/SERVICES - FOREIGN SUBSISTENCE,"RADIOLOGICAL, NOVEL FOOD & PROCESSES",REDFERN TRAVEL LTD,1011706064,144.43,TRAVEL EXPENSES  Wk 19,BD1 5HQ,ADMIN
FOOD STANDARDS AGENCY - Westminster,FOOD STANDARDS AGENCY - Westminster,2018-05-08,EXP - PURCHASE OF GOODS/SERVICES - RAIL TRAVEL,North 2,REDFERN TRAVEL LTD,1011705948,143.4,Travel Expenses Wk 17,BD1 5HQ,PROGRAMME
FOOD STANDARDS AGENCY - Westminster,FOOD STANDARDS AGENCY - Westminster,2018-05-01,EXP - PURCHASE OF GOODS/SERVICES - RAIL TRAVEL,"ANIMAL FEED, TSEs & ABPs",REDFERN TRAVEL LTD,1011705889,140.8,Travel Expenses Wk 16,BD1 5HQ,ADMIN
FOOD STANDARDS AGENCY - Westminster,FOOD STANDARDS AGENCY - Westminster,2018-05-15,EXP - PURCHASE OF GOODS/SERVICES - RAIL TRAVEL,North 1,REDFERN TRAVEL LTD,1011706022,139.6,Travel Expenses Wk 18,BD1 5HQ,PROGRAMME
FOOD STANDARDS AGENCY - Westminster,FOOD STANDARDS AGENCY - Westminster,2018-05-29,EXP - PURCHASE OF GOODS/SERVICES - SUBSISTENCE,Wales and West 4 ,REDFERN TRAVEL LTD,1011706126,139.2,Travel Expenses Wk 20,BD1 5HQ,PROGRAMME
FOOD STANDARDS AGENCY - Westminster,FOOD STANDARDS AGENCY - Westminster,2018-05-18,EXP - PURCHASE OF GOODS/SERVICES - SUBSISTENCE,CHIEF EXECUTIVE & PRIVATE OFFICE,REDFERN TRAVEL LTD,1011706064,138.33,TRAVEL EXPENSES  Wk 19,BD1 5HQ,ADMIN
FOOD STANDARDS AGENCY - Westminster,FOOD STANDARDS AGENCY - Westminster,2018-05-29,EXP - PURCHASE OF GOODS/SERVICES - AIR TRAVEL,LEGAL  BRANCH A & INVESTIGATIONS,REDFERN TRAVEL LTD,1011706126,137.31,Travel Expenses Wk 20,BD1 5HQ,ADMIN
FOOD STANDARDS AGENCY - Westminster,FOOD STANDARDS AGENCY - Westminster,2018-05-15,EXP - PURCHASE OF GOODS/SERVICES - FOREIGN SUBSISTENCE,FOOD ADDITIVES,REDFERN TRAVEL LTD,1011706022,136.81,Travel Expenses Wk 18,BD1 5HQ,ADMIN
FOOD STANDARDS AGENCY - Westminster,FOOD STANDARDS AGENCY - Westminster,2018-05-15,EXP - PURCHASE OF GOODS/SERVICES - FOREIGN SUBSISTENCE,REGULATORY & INTERNATIONAL,REDFERN TRAVEL LTD,1011706022,136.81,Travel Expenses Wk 18,BD1 5HQ,ADMIN
FOOD STANDARDS AGENCY - Westminster,FOOD STANDARDS AGENCY - Westminster,2018-05-01,EXP - PURCHASE OF GOODS/SERVICES - SUBSISTENCE,"RADIOLOGICAL, NOVEL FOOD & PROCESSES",REDFERN TRAVEL LTD,1011705889,133.78,Travel Expenses Wk 16,BD1 5HQ,ADMIN
FOOD STANDARDS AGENCY - Westminster,FOOD STANDARDS AGENCY - Westminster,2018-05-29,EXP - PURCHASE OF GOODS/SERVICES - RAIL TRAVEL,INTERNAL AUDIT,REDFERN TRAVEL LTD,1011706126,130.8,Travel Expenses Wk 20,BD1 5HQ,ADMIN
FOOD STANDARDS AGENCY - Westminster,FOOD STANDARDS AGENCY - Westminster,2018-05-08,EXP - PURCHASE OF GOODS/SERVICES -  FOREIGN AIR TRAVEL,CHIEF EXECUTIVE & PRIVATE OFFICE,REDFERN TRAVEL LTD,1011705948,130.32,Travel Expenses Wk 17,BD1 5HQ,ADMIN
FOOD STANDARDS AGENCY - Westminster,FOOD STANDARDS AGENCY - Westminster,2018-05-18,EXP - PURCHASE OF GOODS/SERVICES - SUBSISTENCE,MICRO FOOD SAFETY BRANCH,REDFERN TRAVEL LTD,1011706064,130.2,TRAVEL EXPENSES  Wk 19,BD1 5HQ,ADMIN
FOOD STANDARDS AGENCY - Westminster,FOOD STANDARDS AGENCY - Westminster,2018-05-01,EXP - PURCHASE OF GOODS/SERVICES - RAIL TRAVEL,"PLANNING, PERFORMANCE & CHANGE",REDFERN TRAVEL LTD,1011705889,130,Travel Expenses Wk 16,BD1 5HQ,ADMIN
FOOD STANDARDS AGENCY - Westminster,FOOD STANDARDS AGENCY - Westminster,2018-05-01,EXP - PURCHASE OF GOODS/SERVICES - FOREIGN SUBSISTENCE,ALLERGY & INTOLERANCE,REDFERN TRAVEL LTD,1011705889,127.72,Travel Expenses Wk 16,BD1 5HQ,ADMIN
FOOD STANDARDS AGENCY - Westminster,FOOD STANDARDS AGENCY - Westminster,2018-05-29,EXP - PURCHASE OF GOODS/SERVICES - FOREIGN SUBSISTENCE,"RADIOLOGICAL, NOVEL FOOD & PROCESSES",REDFERN TRAVEL LTD,1011706126,127.71,Travel Expenses Wk 20,BD1 5HQ,ADMIN
FOOD STANDARDS AGENCY - Westminster,FOOD STANDARDS AGENCY - Westminster,2018-05-15,EXP - PURCHASE OF GOODS/SERVICES - RAIL TRAVEL,FOOD HYGIENE POLICY,REDFERN TRAVEL LTD,1011706022,127,Travel Expenses Wk 18,BD1 5HQ,ADMIN
FOOD STANDARDS AGENCY - Westminster,FOOD STANDARDS AGENCY - Westminster,2018-05-18,EXP - PURCHASE OF GOODS/SERVICES - AIR TRAVEL,CHIEF EXECUTIVE & PRIVATE OFFICE,REDFERN TRAVEL LTD,1011706064,126.54,TRAVEL EXPENSES  Wk 19,BD1 5HQ,ADMIN
FOOD STANDARDS AGENCY - Westminster,FOOD STANDARDS AGENCY - Westminster,2018-05-29,EXP - PURCHASE OF GOODS/SERVICES - AIR TRAVEL,FINANCE BRANCH,REDFERN TRAVEL LTD,1011706126,126.54,Travel Expenses Wk 20,BD1 5HQ,ADMIN
FOOD STANDARDS AGENCY - Westminster,FOOD STANDARDS AGENCY - Westminster,2018-05-08,EXP - PURCHASE OF GOODS/SERVICES - SUBSISTENCE,PROCUREMENT,REDFERN TRAVEL LTD,1011705948,126.1,Travel Expenses Wk 17,BD1 5HQ,ADMIN
FOOD STANDARDS AGENCY - Westminster,FOOD STANDARDS AGENCY - Westminster,2018-05-01,EXP - PURCHASE OF GOODS/SERVICES - SUBSISTENCE,PROCUREMENT,REDFERN TRAVEL LTD,1011705889,125.6,Travel Expenses Wk 16,BD1 5HQ,ADMIN
FOOD STANDARDS AGENCY - Westminster,FOOD STANDARDS AGENCY - Westminster,2018-05-08,EXP - PURCHASE OF GOODS/SERVICES - SUBSISTENCE,MICRO FOOD SAFETY BRANCH,REDFERN TRAVEL LTD,1011705948,125.05,Travel Expenses Wk 17,BD1 5HQ,ADMIN
FOOD STANDARDS AGENCY - Westminster,FOOD STANDARDS AGENCY - Westminster,2018-05-15,EXP - PURCHASE OF GOODS/SERVICES - SUBSISTENCE,FOOD HYGIENE POLICY,REDFERN TRAVEL LTD,1011706022,123.26,Travel Expenses Wk 18,BD1 5HQ,ADMIN
FOOD STANDARDS AGENCY - Westminster,FOOD STANDARDS AGENCY - Westminster,2018-05-29,EXP - PURCHASE OF GOODS/SERVICES -  FOREIGN AIR TRAVEL,MEAT HYGIENE POLICY,REDFERN TRAVEL LTD,1011706126,123,Travel Expenses Wk 20,BD1 5HQ,ADMIN
FOOD STANDARDS AGENCY - Westminster,FOOD STANDARDS AGENCY - Westminster,2018-05-18,EXP - PURCHASE OF GOODS/SERVICES - RAIL TRAVEL,CHEMICAL RISK ASSESSMENT UNIT,REDFERN TRAVEL LTD,1011706064,122,TRAVEL EXPENSES  Wk 19,BD1 5HQ,ADMIN
FOOD STANDARDS AGENCY - Westminster,FOOD STANDARDS AGENCY - Westminster,2018-05-29,EXP - PURCHASE OF GOODS/SERVICES - RAIL TRAVEL,North 1,REDFERN TRAVEL LTD,1011706126,121.7,Travel Expenses Wk 20,BD1 5HQ,PROGRAMME
FOOD STANDARDS AGENCY - Westminster,FOOD STANDARDS AGENCY - Westminster,2018-05-18,EXP - PURCHASE OF GOODS/SERVICES - SUBSISTENCE,INFORMATION & KNOWLEDGE MANAGMENT,REDFERN TRAVEL LTD,1011706064,121.6,TRAVEL EXPENSES  Wk 19,BD1 5HQ,ADMIN
FOOD STANDARDS AGENCY - Westminster,FOOD STANDARDS AGENCY - Westminster,2018-05-08,EXP - PURCHASE OF GOODS/SERVICES -  FOREIGN AIR TRAVEL,REGULATORY & INTERNATIONAL,REDFERN TRAVEL LTD,1011705948,121.52,Travel Expenses Wk 17,BD1 5HQ,ADMIN
FOOD STANDARDS AGENCY - Westminster,FOOD STANDARDS AGENCY - Westminster,2018-05-08,EXP - PURCHASE OF GOODS/SERVICES - RAIL TRAVEL,North 3,REDFERN TRAVEL LTD,1011705948,121.4,Travel Expenses Wk 17,BD1 5HQ,PROGRAMME
FOOD STANDARDS AGENCY - Westminster,FOOD STANDARDS AGENCY - Westminster,2018-05-08,EXP - PURCHASE OF GOODS/SERVICES - RAIL TRAVEL,CHIEF SCIENTIST  ,REDFERN TRAVEL LTD,1011705948,118.4,Travel Expenses Wk 17,BD1 5HQ,ADMIN
FOOD STANDARDS AGENCY - Westminster,FOOD STANDARDS AGENCY - Westminster,2018-05-29,EXP - PURCHASE OF GOODS/SERVICES - RAIL TRAVEL,Wales and West 4 ,REDFERN TRAVEL LTD,1011706126,118,Travel Expenses Wk 20,BD1 5HQ,PROGRAMME
FOOD STANDARDS AGENCY - Westminster,FOOD STANDARDS AGENCY - Westminster,2018-05-15,EXP - PURCHASE OF GOODS/SERVICES - SUBSISTENCE,REGULATORY & INTERNATIONAL,REDFERN TRAVEL LTD,1011706022,116.6,Travel Expenses Wk 18,BD1 5HQ,ADMIN
FOOD STANDARDS AGENCY - Westminster,FOOD STANDARDS AGENCY - Westminster,2018-05-08,EXP - PURCHASE OF GOODS/SERVICES - AIR TRAVEL,"RADIOLOGICAL, NOVEL FOOD & PROCESSES",REDFERN TRAVEL LTD,1011705948,115.95,Travel Expenses Wk 17,BD1 5HQ,ADMIN
FOOD STANDARDS AGENCY - Westminster,FOOD STANDARDS AGENCY - Westminster,2018-05-01,EXP - PURCHASE OF GOODS/SERVICES - SUBSISTENCE,DIGITAL,REDFERN TRAVEL LTD,1011705889,115.6,Travel Expenses Wk 16,BD1 5HQ,ADMIN
FOOD STANDARDS AGENCY - Westminster,FOOD STANDARDS AGENCY - Westminster,2018-05-08,EXP - PURCHASE OF GOODS/SERVICES - RAIL TRAVEL,North 1,REDFERN TRAVEL LTD,1011705948,112.7,Travel Expenses Wk 17,BD1 5HQ,PROGRAMME
FOOD STANDARDS AGENCY - Westminster,FOOD STANDARDS AGENCY - Westminster,2018-05-08,EXP - PURCHASE OF GOODS/SERVICES - SUBSISTENCE,DIGITAL,REDFERN TRAVEL LTD,1011705948,112.38,Travel Expenses Wk 17,BD1 5HQ,ADMIN
FOOD STANDARDS AGENCY - Westminster,FOOD STANDARDS AGENCY - Westminster,2018-05-29,EXP - PURCHASE OF GOODS/SERVICES - RAIL TRAVEL,East 3,REDFERN TRAVEL LTD,1011706126,111.1,Travel Expenses Wk 20,BD1 5HQ,PROGRAMME
FOOD STANDARDS AGENCY - Westminster,FOOD STANDARDS AGENCY - Westminster,2018-05-01,EXP - PURCHASE OF GOODS/SERVICES - RAIL TRAVEL,ALLERGY & INTOLERANCE,REDFERN TRAVEL LTD,1011705889,110.7,Travel Expenses Wk 16,BD1 5HQ,ADMIN
FOOD STANDARDS AGENCY - Westminster,FOOD STANDARDS AGENCY - Westminster,2018-05-15,EXP - PURCHASE OF GOODS/SERVICES - AIR TRAVEL,"AGRICULTURAL, PROCESS & ENVIRONMENTAL CONTAMINANTS",REDFERN TRAVEL LTD,1011706022,110.16,Travel Expenses Wk 18,BD1 5HQ,ADMIN
FOOD STANDARDS AGENCY - Westminster,FOOD STANDARDS AGENCY - Westminster,2018-05-18,EXP - PURCHASE OF GOODS/SERVICES - AIR TRAVEL,"ANIMAL FEED, TSEs & ABPs",REDFERN TRAVEL LTD,1011706064,109,TRAVEL EXPENSES  Wk 19,BD1 5HQ,ADMIN
FOOD STANDARDS AGENCY - Westminster,FOOD STANDARDS AGENCY - Westminster,2018-05-01,EXP - PURCHASE OF GOODS/SERVICES -  FOREIGN AIR TRAVEL,FOOD ADDITIVES,REDFERN TRAVEL LTD,1011705889,108,Travel Expenses Wk 16,BD1 5HQ,ADMIN
FOOD STANDARDS AGENCY - Westminster,FOOD STANDARDS AGENCY - Westminster,2018-05-29,EXP - PURCHASE OF GOODS/SERVICES - RAIL TRAVEL,North 3,REDFERN TRAVEL LTD,1011706126,107.8,Travel Expenses Wk 20,BD1 5HQ,PROGRAMME
FOOD STANDARDS AGENCY - Westminster,FOOD STANDARDS AGENCY - Westminster,2018-05-29,EXP - PURCHASE OF GOODS/SERVICES - FOREIGN SUBSISTENCE,SCIENTIFIC METHODS AND LABORATORY POLICY,REDFERN TRAVEL LTD,1011706126,107.09,Travel Expenses Wk 20,BD1 5HQ,ADMIN
FOOD STANDARDS AGENCY - Westminster,FOOD STANDARDS AGENCY - Westminster,2018-05-01,EXP - PURCHASE OF GOODS/SERVICES - SUBSISTENCE,East 4,REDFERN TRAVEL LTD,1011705889,105.63,Travel Expenses Wk 16,BD1 5HQ,PROGRAMME
FOOD STANDARDS AGENCY - Westminster,FOOD STANDARDS AGENCY - Westminster,2018-05-29,EXP - PURCHASE OF GOODS/SERVICES - AIR TRAVEL,DIGITAL,REDFERN TRAVEL LTD,1011706126,104.65,Travel Expenses Wk 20,BD1 5HQ,ADMIN
FOOD STANDARDS AGENCY - Westminster,FOOD STANDARDS AGENCY - Westminster,2018-05-01,EXP - PURCHASE OF GOODS/SERVICES - RAIL TRAVEL,North 2,REDFERN TRAVEL LTD,1011705889,104.35,Travel Expenses Wk 16,BD1 5HQ,PROGRAMME
FOOD STANDARDS AGENCY - Westminster,FOOD STANDARDS AGENCY - Westminster,2018-05-01,EXP - PURCHASE OF GOODS/SERVICES - TAXI SERVICES,REGULATORY DELIVERY,REDFERN TRAVEL LTD,1011705889,103.54,Travel Expenses Wk 16,BD1 5HQ,ADMIN
FOOD STANDARDS AGENCY - Westminster,FOOD STANDARDS AGENCY - Westminster,2018-05-08,EXP - PURCHASE OF GOODS/SERVICES - RAIL TRAVEL,FOOD CRIME UNIT PROG,REDFERN TRAVEL LTD,1011705948,103.5,Travel Expenses Wk 17,BD1 5HQ,PROGRAMME
FOOD STANDARDS AGENCY - Westminster,FOOD STANDARDS AGENCY - Westminster,2018-05-15,EXP - PURCHASE OF GOODS/SERVICES - TAXI SERVICES,"RADIOLOGICAL, NOVEL FOOD & PROCESSES",REDFERN TRAVEL LTD,1011706022,102.43,Travel Expenses Wk 18,BD1 5HQ,ADMIN
FOOD STANDARDS AGENCY - Westminster,FOOD STANDARDS AGENCY - Westminster,2018-05-18,EXP - PURCHASE OF GOODS/SERVICES - SUBSISTENCE,FOOD ADDITIVES,REDFERN TRAVEL LTD,1011706064,101.5,TRAVEL EXPENSES  Wk 19,BD1 5HQ,ADMIN
FOOD STANDARDS AGENCY - Westminster,FOOD STANDARDS AGENCY - Westminster,2018-05-29,EXP - PURCHASE OF GOODS/SERVICES - RAIL TRAVEL,Wales and West 1 (England),REDFERN TRAVEL LTD,1011706126,101.2,Travel Expenses Wk 20,BD1 5HQ,PROGRAMME
FOOD STANDARDS AGENCY - Westminster,FOOD STANDARDS AGENCY - Westminster,2018-05-08,EXP - PURCHASE OF GOODS/SERVICES - SUBSISTENCE,SECURITY & ESTATES,REDFERN TRAVEL LTD,1011705948,100.6,Travel Expenses Wk 17,BD1 5HQ,ADMIN
FOOD STANDARDS AGENCY - Westminster,FOOD STANDARDS AGENCY - Westminster,2018-05-08,EXP - PURCHASE OF GOODS/SERVICES - RAIL TRAVEL,Wales and West 2 (Wales),REDFERN TRAVEL LTD,1011705948,100.2,Travel Expenses Wk 17,BD1 5HQ,PROGRAMME
FOOD STANDARDS AGENCY - Westminster,FOOD STANDARDS AGENCY - Westminster,2018-05-08,EXP - PURCHASE OF GOODS/SERVICES - AIR TRAVEL,CHIEF EXECUTIVE & PRIVATE OFFICE,REDFERN TRAVEL LTD,1011705948,99.98,Travel Expenses Wk 17,BD1 5HQ,ADMIN
FOOD STANDARDS AGENCY - Westminster,FOOD STANDARDS AGENCY - Westminster,2018-05-01,EXP - PURCHASE OF GOODS/SERVICES - SUBSISTENCE,Wales and West 1 (England),REDFERN TRAVEL LTD,1011705889,99.9,Travel Expenses Wk 16,BD1 5HQ,PROGRAMME
FOOD STANDARDS AGENCY - Westminster,FOOD STANDARDS AGENCY - Westminster,2018-05-18,EXP - PURCHASE OF GOODS/SERVICES - SUBSISTENCE,East 4,REDFERN TRAVEL LTD,1011706064,99.59,TRAVEL EXPENSES  Wk 19,BD1 5HQ,PROGRAMME
FOOD STANDARDS AGENCY - Westminster,FOOD STANDARDS AGENCY - Westminster,2018-05-18,EXP - PURCHASE OF GOODS/SERVICES - RAIL TRAVEL,ANALYSIS & RESEARCH BRANCH,REDFERN TRAVEL LTD,1011706064,98.5,TRAVEL EXPENSES  Wk 19,BD1 5HQ,ADMIN
FOOD STANDARDS AGENCY - Westminster,FOOD STANDARDS AGENCY - Westminster,2018-05-29,EXP - PURCHASE OF GOODS/SERVICES - SUBSISTENCE,INTERNAL AUDIT,REDFERN TRAVEL LTD,1011706126,97.6,Travel Expenses Wk 20,BD1 5HQ,ADMIN
FOOD STANDARDS AGENCY - Westminster,FOOD STANDARDS AGENCY - Westminster,2018-05-01,EXP - PURCHASE OF GOODS/SERVICES - SUBSISTENCE,IT SERVICE DELIVERY,REDFERN TRAVEL LTD,1011705889,97.05,Travel Expenses Wk 16,BD1 5HQ,ADMIN
FOOD STANDARDS AGENCY - Westminster,FOOD STANDARDS AGENCY - Westminster,2018-05-29,EXP - PURCHASE OF GOODS/SERVICES - AIR TRAVEL,MEAT HYGIENE POLICY,REDFERN TRAVEL LTD,1011706126,95.56,Travel Expenses Wk 20,BD1 5HQ,ADMIN
FOOD STANDARDS AGENCY - Westminster,FOOD STANDARDS AGENCY - Westminster,2018-05-08,EXP - PURCHASE OF GOODS/SERVICES -  FOREIGN AIR TRAVEL,CHIEF EXECUTIVE & PRIVATE OFFICE,REDFERN TRAVEL LTD,1011705948,95.32,Travel Expenses Wk 17,BD1 5HQ,ADMIN
FOOD STANDARDS AGENCY - Westminster,FOOD STANDARDS AGENCY - Westminster,2018-05-08,EXP - PURCHASE OF GOODS/SERVICES -  FOREIGN AIR TRAVEL,LEGAL  BRANCH A & INVESTIGATIONS,REDFERN TRAVEL LTD,1011705948,95.32,Travel Expenses Wk 17,BD1 5HQ,ADMIN
FOOD STANDARDS AGENCY - Westminster,FOOD STANDARDS AGENCY - Westminster,2018-05-01,EXP - PURCHASE OF GOODS/SERVICES - SUBSISTENCE,East 1,REDFERN TRAVEL LTD,1011705889,95.1,Travel Expenses Wk 16,BD1 5HQ,PROGRAMME
FOOD STANDARDS AGENCY - Westminster,FOOD STANDARDS AGENCY - Westminster,2018-05-15,EXP - PURCHASE OF GOODS/SERVICES - SUBSISTENCE,Wales and West 1 (England),REDFERN TRAVEL LTD,1011706022,94.85,Travel Expenses Wk 18,BD1 5HQ,PROGRAMME
FOOD STANDARDS AGENCY - Westminster,FOOD STANDARDS AGENCY - Westminster,2018-05-29,EXP - PURCHASE OF GOODS/SERVICES - RAIL TRAVEL,"AGRICULTURAL, PROCESS & ENVIRONMENTAL CONTAMINANTS",REDFERN TRAVEL LTD,1011706126,94.1,Travel Expenses Wk 20,BD1 5HQ,ADMIN
FOOD STANDARDS AGENCY - Westminster,FOOD STANDARDS AGENCY - Westminster,2018-05-18,EXP - PURCHASE OF GOODS/SERVICES - AIR TRAVEL,"RADIOLOGICAL, NOVEL FOOD & PROCESSES",REDFERN TRAVEL LTD,1011706064,93.35,TRAVEL EXPENSES  Wk 19,BD1 5HQ,ADMIN
FOOD STANDARDS AGENCY - Westminster,FOOD STANDARDS AGENCY - Westminster,2018-05-18,EXP - PURCHASE OF GOODS/SERVICES - RAIL TRAVEL,NON MEAT FIELD OPS,REDFERN TRAVEL LTD,1011706064,92.2,TRAVEL EXPENSES  Wk 19,BD1 5HQ,PROGRAMME
FOOD STANDARDS AGENCY - Westminster,FOOD STANDARDS AGENCY - Westminster,2018-05-18,EXP - PURCHASE OF GOODS/SERVICES - AIR TRAVEL,OPERATIONAL DELIVERY,REDFERN TRAVEL LTD,1011706064,92.16,TRAVEL EXPENSES  Wk 19,BD1 5HQ,PROGRAMME
FOOD STANDARDS AGENCY - Westminster,FOOD STANDARDS AGENCY - Westminster,2018-05-15,EXP - PURCHASE OF GOODS/SERVICES - RAIL TRAVEL,INTERNAL AUDIT,REDFERN TRAVEL LTD,1011706022,90.9,Travel Expenses Wk 18,BD1 5HQ,ADMIN
FOOD STANDARDS AGENCY - Westminster,FOOD STANDARDS AGENCY - Westminster,2018-05-01,EXP - PURCHASE OF GOODS/SERVICES - SUBSISTENCE,CHIEF EXECUTIVE & PRIVATE OFFICE,REDFERN TRAVEL LTD,1011705889,90.6,Travel Expenses Wk 16,BD1 5HQ,ADMIN
FOOD STANDARDS AGENCY - Westminster,FOOD STANDARDS AGENCY - Westminster,2018-05-01,EXP - PURCHASE OF GOODS/SERVICES - RAIL TRAVEL,CHIEF SCIENTIST  ,REDFERN TRAVEL LTD,1011705889,90.6,Travel Expenses Wk 16,BD1 5HQ,ADMIN
FOOD STANDARDS AGENCY - Westminster,FOOD STANDARDS AGENCY - Westminster,2018-05-18,EXP - PURCHASE OF GOODS/SERVICES - SUBSISTENCE,IT SERVICE DELIVERY,REDFERN TRAVEL LTD,1011706064,89.6,TRAVEL EXPENSES  Wk 19,BD1 5HQ,ADMIN
FOOD STANDARDS AGENCY - Westminster,FOOD STANDARDS AGENCY - Westminster,2018-05-29,EXP - PURCHASE OF GOODS/SERVICES - SUBSISTENCE,East 3,REDFERN TRAVEL LTD,1011706126,89.4,Travel Expenses Wk 20,BD1 5HQ,PROGRAMME
FOOD STANDARDS AGENCY - Westminster,FOOD STANDARDS AGENCY - Westminster,2018-05-18,EXP - PURCHASE OF GOODS/SERVICES - SUBSISTENCE,Wales and West 1 (England),REDFERN TRAVEL LTD,1011706064,88.55,TRAVEL EXPENSES  Wk 19,BD1 5HQ,PROGRAMME
FOOD STANDARDS AGENCY - Westminster,FOOD STANDARDS AGENCY - Westminster,2018-05-18,EXP - PURCHASE OF GOODS/SERVICES - RAIL TRAVEL,East 4,REDFERN TRAVEL LTD,1011706064,88.45,TRAVEL EXPENSES  Wk 19,BD1 5HQ,PROGRAMME
FOOD STANDARDS AGENCY - Westminster,FOOD STANDARDS AGENCY - Westminster,2018-05-15,EXP - PURCHASE OF GOODS/SERVICES - SUBSISTENCE,CHIEF SCIENTIST  ,REDFERN TRAVEL LTD,1011706022,88.2,Travel Expenses Wk 18,BD1 5HQ,ADMIN
FOOD STANDARDS AGENCY - Westminster,FOOD STANDARDS AGENCY - Westminster,2018-05-18,EXP - PURCHASE OF GOODS/SERVICES - TAXI SERVICES,OPERATIONS ASSURANCE DIVISION (PROGRAMME),REDFERN TRAVEL LTD,1011706064,87.86,TRAVEL EXPENSES  Wk 19,BD1 5HQ,PROGRAMME
FOOD STANDARDS AGENCY - Westminster,FOOD STANDARDS AGENCY - Westminster,2018-05-08,EXP - PURCHASE OF GOODS/SERVICES - TAXI SERVICES,OPERATIONS ASSURANCE DIVISION (PROGRAMME),REDFERN TRAVEL LTD,1011705948,87.36,Travel Expenses Wk 17,BD1 5HQ,PROGRAMME
FOOD STANDARDS AGENCY - Westminster,FOOD STANDARDS AGENCY - Westminster,2018-05-15,EXP - PURCHASE OF GOODS/SERVICES - TAXI SERVICES,OPERATIONS ASSURANCE DIVISION (PROGRAMME),REDFERN TRAVEL LTD,1011706022,87.36,Travel Expenses Wk 18,BD1 5HQ,PROGRAMME
FOOD STANDARDS AGENCY - Westminster,FOOD STANDARDS AGENCY - Westminster,2018-05-15,EXP - PURCHASE OF GOODS/SERVICES - SUBSISTENCE,East 4,REDFERN TRAVEL LTD,1011706022,86.59,Travel Expenses Wk 18,BD1 5HQ,PROGRAMME
FOOD STANDARDS AGENCY - Westminster,FOOD STANDARDS AGENCY - Westminster,2018-05-15,EXP - PURCHASE OF GOODS/SERVICES - RAIL TRAVEL,"ANIMAL FEED, TSEs & ABPs",REDFERN TRAVEL LTD,1011706022,85.5,Travel Expenses Wk 18,BD1 5HQ,ADMIN
FOOD STANDARDS AGENCY - Westminster,FOOD STANDARDS AGENCY - Westminster,2018-05-18,EXP - PURCHASE OF GOODS/SERVICES - AIR TRAVEL,FINANCE BRANCH,REDFERN TRAVEL LTD,1011706064,85.2,TRAVEL EXPENSES  Wk 19,BD1 5HQ,ADMIN
FOOD STANDARDS AGENCY - Westminster,FOOD STANDARDS AGENCY - Westminster,2018-05-08,EXP - PURCHASE OF GOODS/SERVICES - SUBSISTENCE,"AGRICULTURAL, PROCESS & ENVIRONMENTAL CONTAMINANTS",REDFERN TRAVEL LTD,1011705948,83.1,Travel Expenses Wk 17,BD1 5HQ,ADMIN
FOOD STANDARDS AGENCY - Westminster,FOOD STANDARDS AGENCY - Westminster,2018-05-29,EXP - PURCHASE OF GOODS/SERVICES - RAIL TRAVEL,INFORMATION & KNOWLEDGE MANAGMENT,REDFERN TRAVEL LTD,1011706126,82,Travel Expenses Wk 20,BD1 5HQ,ADMIN
FOOD STANDARDS AGENCY - Westminster,FOOD STANDARDS AGENCY - Westminster,2018-05-18,EXP - PURCHASE OF GOODS/SERVICES - RAIL TRAVEL,East 1,REDFERN TRAVEL LTD,1011706064,81.1,TRAVEL EXPENSES  Wk 19,BD1 5HQ,PROGRAMME
FOOD STANDARDS AGENCY - Westminster,FOOD STANDARDS AGENCY - Westminster,2018-05-01,EXP - PURCHASE OF GOODS/SERVICES - SUBSISTENCE,East 3,REDFERN TRAVEL LTD,1011705889,81.1,Travel Expenses Wk 16,BD1 5HQ,PROGRAMME
FOOD STANDARDS AGENCY - Westminster,FOOD STANDARDS AGENCY - Westminster,2018-05-01,EXP - PURCHASE OF GOODS/SERVICES - AIR TRAVEL,DIGITAL,REDFERN TRAVEL LTD,1011705889,80.5,Travel Expenses Wk 16,BD1 5HQ,ADMIN
FOOD STANDARDS AGENCY - Westminster,FOOD STANDARDS AGENCY - Westminster,2018-05-18,EXP - PURCHASE OF GOODS/SERVICES - SUBSISTENCE,CORPORATE SUPPORT UNIT,REDFERN TRAVEL LTD,1011706064,79.2,TRAVEL EXPENSES  Wk 19,BD1 5HQ,ADMIN
FOOD STANDARDS AGENCY - Westminster,FOOD STANDARDS AGENCY - Westminster,2018-05-18,EXP - PURCHASE OF GOODS/SERVICES - RAIL TRAVEL,MEAT HYGIENE POLICY,REDFERN TRAVEL LTD,1011706064,79.15,TRAVEL EXPENSES  Wk 19,BD1 5HQ,ADMIN
FOOD STANDARDS AGENCY - Westminster,FOOD STANDARDS AGENCY - Westminster,2018-05-29,EXP - PURCHASE OF GOODS/SERVICES - SUBSISTENCE,DIGITAL,REDFERN TRAVEL LTD,1011706126,78.6,Travel Expenses Wk 20,BD1 5HQ,ADMIN
FOOD STANDARDS AGENCY - Westminster,FOOD STANDARDS AGENCY - Westminster,2018-05-18,EXP - PURCHASE OF GOODS/SERVICES - SUBSISTENCE,"PLANNING, PERFORMANCE & CHANGE",REDFERN TRAVEL LTD,1011706064,78.6,TRAVEL EXPENSES  Wk 19,BD1 5HQ,ADMIN
FOOD STANDARDS AGENCY - Westminster,FOOD STANDARDS AGENCY - Westminster,2018-05-18,EXP - PURCHASE OF GOODS/SERVICES - FOREIGN SUBSISTENCE,MEAT HYGIENE POLICY,REDFERN TRAVEL LTD,1011706064,78.14,TRAVEL EXPENSES  Wk 19,BD1 5HQ,ADMIN
FOOD STANDARDS AGENCY - Westminster,FOOD STANDARDS AGENCY - Westminster,2018-05-01,EXP - PURCHASE OF GOODS/SERVICES - RAIL TRAVEL,MICRO FOOD SAFETY BRANCH,REDFERN TRAVEL LTD,1011705889,77.4,Travel Expenses Wk 16,BD1 5HQ,ADMIN
FOOD STANDARDS AGENCY - Westminster,FOOD STANDARDS AGENCY - Westminster,2018-05-29,EXP - PURCHASE OF GOODS/SERVICES - AIR TRAVEL,FOOD ADDITIVES,REDFERN TRAVEL LTD,1011706126,75.93,Travel Expenses Wk 20,BD1 5HQ,ADMIN
FOOD STANDARDS AGENCY - Westminster,FOOD STANDARDS AGENCY - Westminster,2018-05-18,EXP - PURCHASE OF GOODS/SERVICES - SUBSISTENCE,Wales and West 2 (Wales),REDFERN TRAVEL LTD,1011706064,75.75,TRAVEL EXPENSES  Wk 19,BD1 5HQ,PROGRAMME
FOOD STANDARDS AGENCY - Westminster,FOOD STANDARDS AGENCY - Westminster,2018-05-18,EXP - PURCHASE OF GOODS/SERVICES - RAIL TRAVEL,LEGAL  BRANCH A & INVESTIGATIONS,REDFERN TRAVEL LTD,1011706064,75.4,TRAVEL EXPENSES  Wk 19,BD1 5HQ,ADMIN
FOOD STANDARDS AGENCY - Westminster,FOOD STANDARDS AGENCY - Westminster,2018-05-15,EXP - PURCHASE OF GOODS/SERVICES - RAIL TRAVEL,MICRO FOOD SAFETY BRANCH,REDFERN TRAVEL LTD,1011706022,75.4,Travel Expenses Wk 18,BD1 5HQ,ADMIN
FOOD STANDARDS AGENCY - Westminster,FOOD STANDARDS AGENCY - Westminster,2018-05-15,EXP - PURCHASE OF GOODS/SERVICES - AIR TRAVEL,FINANCE BRANCH,REDFERN TRAVEL LTD,1011706022,74.7,Travel Expenses Wk 18,BD1 5HQ,ADMIN
FOOD STANDARDS AGENCY - Westminster,FOOD STANDARDS AGENCY - Westminster,2018-05-15,EXP - PURCHASE OF GOODS/SERVICES - SUBSISTENCE,Wales and West 2 (England),REDFERN TRAVEL LTD,1011706022,73.59,Travel Expenses Wk 18,BD1 5HQ,PROGRAMME
FOOD STANDARDS AGENCY - Westminster,FOOD STANDARDS AGENCY - Westminster,2018-05-15,EXP - PURCHASE OF GOODS/SERVICES - RAIL TRAVEL,ALLERGY & INTOLERANCE,REDFERN TRAVEL LTD,1011706022,72,Travel Expenses Wk 18,BD1 5HQ,ADMIN
FOOD STANDARDS AGENCY - Westminster,FOOD STANDARDS AGENCY - Westminster,2018-05-15,EXP - PURCHASE OF GOODS/SERVICES - RAIL TRAVEL,"AGRICULTURAL, PROCESS & ENVIRONMENTAL CONTAMINANTS",REDFERN TRAVEL LTD,1011706022,71.5,Travel Expenses Wk 18,BD1 5HQ,ADMIN
FOOD STANDARDS AGENCY - Westminster,FOOD STANDARDS AGENCY - Westminster,2018-05-18,EXP - PURCHASE OF GOODS/SERVICES - SUBSISTENCE,Wales and West 3 ,REDFERN TRAVEL LTD,1011706064,70.2,TRAVEL EXPENSES  Wk 19,BD1 5HQ,PROGRAMME
FOOD STANDARDS AGENCY - Westminster,FOOD STANDARDS AGENCY - Westminster,2018-05-29,EXP - PURCHASE OF GOODS/SERVICES - RAIL TRAVEL,FOOD CRIME UNIT PROG,REDFERN TRAVEL LTD,1011706126,69.8,Travel Expenses Wk 20,BD1 5HQ,PROGRAMME
FOOD STANDARDS AGENCY - Westminster,FOOD STANDARDS AGENCY - Westminster,2018-05-08,EXP - PURCHASE OF GOODS/SERVICES - RAIL TRAVEL,ANALYSIS & RESEARCH BRANCH,REDFERN TRAVEL LTD,1011705948,69.5,Travel Expenses Wk 17,BD1 5HQ,ADMIN
FOOD STANDARDS AGENCY - Westminster,FOOD STANDARDS AGENCY - Westminster,2018-05-18,EXP - PURCHASE OF GOODS/SERVICES - RAIL TRAVEL,CORPORATE SUPPORT UNIT,REDFERN TRAVEL LTD,1011706064,69.2,TRAVEL EXPENSES  Wk 19,BD1 5HQ,ADMIN
FOOD STANDARDS AGENCY - Westminster,FOOD STANDARDS AGENCY - Westminster,2018-05-08,EXP - PURCHASE OF GOODS/SERVICES - SUBSISTENCE,Wales and West 1 (England),REDFERN TRAVEL LTD,1011705948,68.4,Travel Expenses Wk 17,BD1 5HQ,PROGRAMME
FOOD STANDARDS AGENCY - Westminster,FOOD STANDARDS AGENCY - Westminster,2018-05-18,EXP - PURCHASE OF GOODS/SERVICES - AIR TRAVEL,MEAT HYGIENE POLICY,REDFERN TRAVEL LTD,1011706064,68.38,TRAVEL EXPENSES  Wk 19,BD1 5HQ,ADMIN
FOOD STANDARDS AGENCY - Westminster,FOOD STANDARDS AGENCY - Westminster,2018-05-18,EXP - PURCHASE OF GOODS/SERVICES - RAIL TRAVEL,FOOD ADDITIVES,REDFERN TRAVEL LTD,1011706064,68,TRAVEL EXPENSES  Wk 19,BD1 5HQ,ADMIN
FOOD STANDARDS AGENCY - Westminster,FOOD STANDARDS AGENCY - Westminster,2018-05-29,EXP - PURCHASE OF GOODS/SERVICES - TAXI SERVICES,OPERATIONS ASSURANCE DIVISION (PROGRAMME),REDFERN TRAVEL LTD,1011706126,66.47,Travel Expenses Wk 20,BD1 5HQ,PROGRAMME
FOOD STANDARDS AGENCY - Westminster,FOOD STANDARDS AGENCY - Westminster,2018-05-01,EXP - PURCHASE OF GOODS/SERVICES - TAXI SERVICES,OPERATIONS ASSURANCE DIVISION (PROGRAMME),REDFERN TRAVEL LTD,1011705889,65.8,Travel Expenses Wk 16,BD1 5HQ,PROGRAMME
FOOD STANDARDS AGENCY - Westminster,FOOD STANDARDS AGENCY - Westminster,2018-05-18,EXP - PURCHASE OF GOODS/SERVICES - RAIL TRAVEL,FOOD CRIME UNIT PROG,REDFERN TRAVEL LTD,1011706064,63.6,TRAVEL EXPENSES  Wk 19,BD1 5HQ,PROGRAMME
FOOD STANDARDS AGENCY - Westminster,FOOD STANDARDS AGENCY - Westminster,2018-05-01,EXP - PURCHASE OF GOODS/SERVICES - RAIL TRAVEL,East 1,REDFERN TRAVEL LTD,1011705889,63.1,Travel Expenses Wk 16,BD1 5HQ,PROGRAMME
FOOD STANDARDS AGENCY - Westminster,FOOD STANDARDS AGENCY - Westminster,2018-05-08,EXP - PURCHASE OF GOODS/SERVICES - AIR TRAVEL,LEGAL  BRANCH A & INVESTIGATIONS,REDFERN TRAVEL LTD,1011705948,62.18,Travel Expenses Wk 17,BD1 5HQ,ADMIN
FOOD STANDARDS AGENCY - Westminster,FOOD STANDARDS AGENCY - Westminster,2018-05-29,EXP - PURCHASE OF GOODS/SERVICES - SUBSISTENCE,North 3,REDFERN TRAVEL LTD,1011706126,60.6,Travel Expenses Wk 20,BD1 5HQ,PROGRAMME
FOOD STANDARDS AGENCY - Westminster,FOOD STANDARDS AGENCY - Westminster,2018-05-08,EXP - PURCHASE OF GOODS/SERVICES - RAIL TRAVEL,North 4,REDFERN TRAVEL LTD,1011705948,60,Travel Expenses Wk 17,BD1 5HQ,PROGRAMME
FOOD STANDARDS AGENCY - Westminster,FOOD STANDARDS AGENCY - Westminster,2018-05-01,EXP - PURCHASE OF GOODS/SERVICES - RAIL TRAVEL,"AGRICULTURAL, PROCESS & ENVIRONMENTAL CONTAMINANTS",REDFERN TRAVEL LTD,1011705889,59.7,Travel Expenses Wk 16,BD1 5HQ,ADMIN
FOOD STANDARDS AGENCY - Westminster,FOOD STANDARDS AGENCY - Westminster,2018-05-18,EXP - PURCHASE OF GOODS/SERVICES - RAIL TRAVEL,FOOD CRIME UNIT ADMIN,REDFERN TRAVEL LTD,1011706064,59,TRAVEL EXPENSES  Wk 19,BD1 5HQ,ADMIN
FOOD STANDARDS AGENCY - Westminster,FOOD STANDARDS AGENCY - Westminster,2018-05-29,EXP - PURCHASE OF GOODS/SERVICES - RAIL TRAVEL,"ANIMAL FEED, TSEs & ABPs",REDFERN TRAVEL LTD,1011706126,58.4,Travel Expenses Wk 20,BD1 5HQ,ADMIN
FOOD STANDARDS AGENCY - Westminster,FOOD STANDARDS AGENCY - Westminster,2018-05-15,EXP - PURCHASE OF GOODS/SERVICES - TAXI SERVICES,"AGRICULTURAL, PROCESS & ENVIRONMENTAL CONTAMINANTS",REDFERN TRAVEL LTD,1011706022,58.38,Travel Expenses Wk 18,BD1 5HQ,ADMIN
FOOD STANDARDS AGENCY - Westminster,FOOD STANDARDS AGENCY - Westminster,2018-05-15,EXP - PURCHASE OF GOODS/SERVICES - SUBSISTENCE,PROCUREMENT,REDFERN TRAVEL LTD,1011706022,58.35,Travel Expenses Wk 18,BD1 5HQ,ADMIN
FOOD STANDARDS AGENCY - Westminster,FOOD STANDARDS AGENCY - Westminster,2018-05-01,EXP - PURCHASE OF GOODS/SERVICES - TAXI SERVICES,FOOD ADDITIVES,REDFERN TRAVEL LTD,1011705889,57.53,Travel Expenses Wk 16,BD1 5HQ,ADMIN
FOOD STANDARDS AGENCY - Westminster,FOOD STANDARDS AGENCY - Westminster,2018-05-29,EXP - PURCHASE OF GOODS/SERVICES - RAIL TRAVEL,SCIENTIFIC METHODS AND LABORATORY POLICY,REDFERN TRAVEL LTD,1011706126,57.2,Travel Expenses Wk 20,BD1 5HQ,ADMIN
FOOD STANDARDS AGENCY - Westminster,FOOD STANDARDS AGENCY - Westminster,2018-05-01,EXP - PURCHASE OF GOODS/SERVICES - SUBSISTENCE,North 1,REDFERN TRAVEL LTD,1011705889,55.49,Travel Expenses Wk 16,BD1 5HQ,PROGRAMME
FOOD STANDARDS AGENCY - Westminster,FOOD STANDARDS AGENCY - Westminster,2018-05-18,EXP - PURCHASE OF GOODS/SERVICES -  FOREIGN AIR TRAVEL,FOOD CRIME UNIT ADMIN,REDFERN TRAVEL LTD,1011706064,55.16,TRAVEL EXPENSES  Wk 19,BD1 5HQ,ADMIN
FOOD STANDARDS AGENCY - Westminster,FOOD STANDARDS AGENCY - Westminster,2018-05-15,EXP - PURCHASE OF GOODS/SERVICES - SUBSISTENCE,East 3,REDFERN TRAVEL LTD,1011706022,55.1,Travel Expenses Wk 18,BD1 5HQ,PROGRAMME
FOOD STANDARDS AGENCY - Westminster,FOOD STANDARDS AGENCY - Westminster,2018-05-18,EXP - PURCHASE OF GOODS/SERVICES - OTHER TRAVEL,OPERATIONS ASSURANCE DIVISION (PROGRAMME),REDFERN TRAVEL LTD,1011706064,54.95,TRAVEL EXPENSES  Wk 19,BD1 5HQ,PROGRAMME
FOOD STANDARDS AGENCY - Westminster,FOOD STANDARDS AGENCY - Westminster,2018-05-18,EXP - PURCHASE OF GOODS/SERVICES - SUBSISTENCE,IT STRATEGY & DEVELOPMENT,REDFERN TRAVEL LTD,1011706064,54.85,TRAVEL EXPENSES  Wk 19,BD1 5HQ,ADMIN
FOOD STANDARDS AGENCY - Westminster,FOOD STANDARDS AGENCY - Westminster,2018-05-08,EXP - PURCHASE OF GOODS/SERVICES - SUBSISTENCE,RESILIENCE ADMIN,REDFERN TRAVEL LTD,1011705948,54.7,Travel Expenses Wk 17,BD1 5HQ,ADMIN
FOOD STANDARDS AGENCY - Westminster,FOOD STANDARDS AGENCY - Westminster,2018-05-08,EXP - PURCHASE OF GOODS/SERVICES - RAIL TRAVEL,INFORMATION & KNOWLEDGE MANAGMENT,REDFERN TRAVEL LTD,1011705948,54.6,Travel Expenses Wk 17,BD1 5HQ,ADMIN
FOOD STANDARDS AGENCY - Westminster,FOOD STANDARDS AGENCY - Westminster,2018-05-29,EXP - PURCHASE OF GOODS/SERVICES - SUBSISTENCE,Wales and West 1 (Wales),REDFERN TRAVEL LTD,1011706126,54.58,Travel Expenses Wk 20,BD1 5HQ,PROGRAMME
FOOD STANDARDS AGENCY - Westminster,FOOD STANDARDS AGENCY - Westminster,2018-05-15,EXP - PURCHASE OF GOODS/SERVICES -  FOREIGN AIR TRAVEL,RESILIENCE ADMIN,REDFERN TRAVEL LTD,1011706022,54.16,Travel Expenses Wk 18,BD1 5HQ,ADMIN
FOOD STANDARDS AGENCY - Westminster,FOOD STANDARDS AGENCY - Westminster,2018-05-01,EXP - PURCHASE OF GOODS/SERVICES - SUBSISTENCE,FOOD CRIME UNIT PROG,REDFERN TRAVEL LTD,1011705889,54.13,Travel Expenses Wk 16,BD1 5HQ,PROGRAMME
FOOD STANDARDS AGENCY - Westminster,FOOD STANDARDS AGENCY - Westminster,2018-05-29,EXP - PURCHASE OF GOODS/SERVICES - RAIL TRAVEL,East 2,REDFERN TRAVEL LTD,1011706126,53,Travel Expenses Wk 20,BD1 5HQ,PROGRAMME
FOOD STANDARDS AGENCY - Westminster,FOOD STANDARDS AGENCY - Westminster,2018-05-08,EXP - PURCHASE OF GOODS/SERVICES - SUBSISTENCE,East 3,REDFERN TRAVEL LTD,1011705948,52.1,Travel Expenses Wk 17,BD1 5HQ,PROGRAMME
FOOD STANDARDS AGENCY - Westminster,FOOD STANDARDS AGENCY - Westminster,2018-05-08,EXP - PURCHASE OF GOODS/SERVICES - SUBSISTENCE,North 3,REDFERN TRAVEL LTD,1011705948,50.67,Travel Expenses Wk 17,BD1 5HQ,PROGRAMME
FOOD STANDARDS AGENCY - Westminster,FOOD STANDARDS AGENCY - Westminster,2018-05-08,EXP - PURCHASE OF GOODS/SERVICES - TAXI SERVICES,CORPORATE SUPPORT UNIT,REDFERN TRAVEL LTD,1011705948,50.07,Travel Expenses Wk 17,BD1 5HQ,ADMIN
FOOD STANDARDS AGENCY - Westminster,FOOD STANDARDS AGENCY - Westminster,2018-05-18,EXP - PURCHASE OF GOODS/SERVICES - SUBSISTENCE,North 2,REDFERN TRAVEL LTD,1011706064,47.83,TRAVEL EXPENSES  Wk 19,BD1 5HQ,PROGRAMME
FOOD STANDARDS AGENCY - Westminster,FOOD STANDARDS AGENCY - Westminster,2018-05-15,EXP - PURCHASE OF GOODS/SERVICES - SUBSISTENCE,FINANCE BRANCH,REDFERN TRAVEL LTD,1011706022,46.6,Travel Expenses Wk 18,BD1 5HQ,ADMIN
FOOD STANDARDS AGENCY - Westminster,FOOD STANDARDS AGENCY - Westminster,2018-05-18,EXP - PURCHASE OF GOODS/SERVICES - SUBSISTENCE,East 2,REDFERN TRAVEL LTD,1011706064,46.47,TRAVEL EXPENSES  Wk 19,BD1 5HQ,PROGRAMME
FOOD STANDARDS AGENCY - Westminster,FOOD STANDARDS AGENCY - Westminster,2018-05-08,EXP - PURCHASE OF GOODS/SERVICES - OTHER TRAVEL,OPERATIONS ASSURANCE DIVISION (PROGRAMME),REDFERN TRAVEL LTD,1011705948,44.95,Travel Expenses Wk 17,BD1 5HQ,PROGRAMME
FOOD STANDARDS AGENCY - Westminster,FOOD STANDARDS AGENCY - Westminster,2018-05-08,EXP - PURCHASE OF GOODS/SERVICES - RAIL TRAVEL,RESILIENCE ADMIN,REDFERN TRAVEL LTD,1011705948,44.8,Travel Expenses Wk 17,BD1 5HQ,ADMIN
FOOD STANDARDS AGENCY - Westminster,FOOD STANDARDS AGENCY - Westminster,2018-05-01,EXP - PURCHASE OF GOODS/SERVICES - RAIL TRAVEL,North 3,REDFERN TRAVEL LTD,1011705889,44.7,Travel Expenses Wk 16,BD1 5HQ,PROGRAMME
FOOD STANDARDS AGENCY - Westminster,FOOD STANDARDS AGENCY - Westminster,2018-05-18,EXP - PURCHASE OF GOODS/SERVICES - RAIL TRAVEL,INPORT & EXPORTS TEAM,REDFERN TRAVEL LTD,1011706064,44.4,TRAVEL EXPENSES  Wk 19,BD1 5HQ,ADMIN
FOOD STANDARDS AGENCY - Westminster,FOOD STANDARDS AGENCY - Westminster,2018-05-15,EXP - PURCHASE OF GOODS/SERVICES - AIR TRAVEL,NORTHERN IRELAND,REDFERN TRAVEL LTD,1011706022,44.11,Travel Expenses Wk 18,BD1 5HQ,ADMIN
FOOD STANDARDS AGENCY - Westminster,FOOD STANDARDS AGENCY - Westminster,2018-05-29,EXP - PURCHASE OF GOODS/SERVICES - OTHER TRAVEL,PROGRAMME AND PROJECT DELIVERY,REDFERN TRAVEL LTD,1011706126,44.11,Travel Expenses Wk 20,BD1 5HQ,ADMIN
FOOD STANDARDS AGENCY - Westminster,FOOD STANDARDS AGENCY - Westminster,2018-05-01,EXP - PURCHASE OF GOODS/SERVICES - AIR TRAVEL,FOOD ADDITIVES,REDFERN TRAVEL LTD,1011705889,43.39,Travel Expenses Wk 16,BD1 5HQ,ADMIN
FOOD STANDARDS AGENCY - Westminster,FOOD STANDARDS AGENCY - Westminster,2018-05-08,EXP - PURCHASE OF GOODS/SERVICES - TAXI SERVICES,ORGANISATIONAL DEVELOPMENT,REDFERN TRAVEL LTD,1011705948,42.88,Travel Expenses Wk 17,BD1 5HQ,ADMIN
FOOD STANDARDS AGENCY - Westminster,FOOD STANDARDS AGENCY - Westminster,2018-05-15,EXP - PURCHASE OF GOODS/SERVICES - RAIL TRAVEL,RESILIENCE ADMIN,REDFERN TRAVEL LTD,1011706022,42.7,Travel Expenses Wk 18,BD1 5HQ,ADMIN
FOOD STANDARDS AGENCY - Westminster,FOOD STANDARDS AGENCY - Westminster,2018-05-15,EXP - PURCHASE OF GOODS/SERVICES - RAIL TRAVEL,North 2,REDFERN TRAVEL LTD,1011706022,42.5,Travel Expenses Wk 18,BD1 5HQ,PROGRAMME
FOOD STANDARDS AGENCY - Westminster,FOOD STANDARDS AGENCY - Westminster,2018-05-18,EXP - PURCHASE OF GOODS/SERVICES - OTHER TRAVEL,NORTHERN IRELAND,REDFERN TRAVEL LTD,1011706064,41.6,TRAVEL EXPENSES  Wk 19,BD1 5HQ,ADMIN
FOOD STANDARDS AGENCY - Westminster,FOOD STANDARDS AGENCY - Westminster,2018-05-01,EXP - PURCHASE OF GOODS/SERVICES - OTHER TRAVEL,ORGANISATIONAL DEVELOPMENT,REDFERN TRAVEL LTD,1011705889,40.99,Travel Expenses Wk 16,BD1 5HQ,ADMIN
FOOD STANDARDS AGENCY - Westminster,FOOD STANDARDS AGENCY - Westminster,2018-05-08,EXP - PURCHASE OF GOODS/SERVICES - SUBSISTENCE,North 1,REDFERN TRAVEL LTD,1011705948,40.5,Travel Expenses Wk 17,BD1 5HQ,PROGRAMME
FOOD STANDARDS AGENCY - Westminster,FOOD STANDARDS AGENCY - Westminster,2018-05-29,EXP - PURCHASE OF GOODS/SERVICES - RAIL TRAVEL,MEAT HYGIENE POLICY,REDFERN TRAVEL LTD,1011706126,40.15,Travel Expenses Wk 20,BD1 5HQ,ADMIN
FOOD STANDARDS AGENCY - Westminster,FOOD STANDARDS AGENCY - Westminster,2018-05-01,EXP - PURCHASE OF GOODS/SERVICES - TAXI SERVICES,OPERATIONAL DELIVERY,REDFERN TRAVEL LTD,1011705889,39.74,Travel Expenses Wk 16,BD1 5HQ,PROGRAMME
FOOD STANDARDS AGENCY - Westminster,FOOD STANDARDS AGENCY - Westminster,2018-05-29,EXP - PURCHASE OF GOODS/SERVICES - OTHER TRAVEL,FOOD ADDITIVES,REDFERN TRAVEL LTD,1011706126,39.3,Travel Expenses Wk 20,BD1 5HQ,ADMIN
FOOD STANDARDS AGENCY - Westminster,FOOD STANDARDS AGENCY - Westminster,2018-05-29,EXP - PURCHASE OF GOODS/SERVICES - RAIL TRAVEL,MICRO FOOD SAFETY BRANCH,REDFERN TRAVEL LTD,1011706126,39,Travel Expenses Wk 20,BD1 5HQ,ADMIN
FOOD STANDARDS AGENCY - Westminster,FOOD STANDARDS AGENCY - Westminster,2018-05-29,EXP - PURCHASE OF GOODS/SERVICES - RAIL TRAVEL,INPORT & EXPORTS TEAM,REDFERN TRAVEL LTD,1011706126,38.5,Travel Expenses Wk 20,BD1 5HQ,ADMIN
FOOD STANDARDS AGENCY - Westminster,FOOD STANDARDS AGENCY - Westminster,2018-05-08,EXP - PURCHASE OF GOODS/SERVICES - OTHER TRAVEL,OPERATIONAL DELIVERY,REDFERN TRAVEL LTD,1011705948,38.49,Travel Expenses Wk 17,BD1 5HQ,PROGRAMME
FOOD STANDARDS AGENCY - Westminster,FOOD STANDARDS AGENCY - Westminster,2018-05-01,EXP - PURCHASE OF GOODS/SERVICES - TAXI SERVICES,NON MEAT FIELD OPS,REDFERN TRAVEL LTD,1011705889,38.35,Travel Expenses Wk 16,BD1 5HQ,PROGRAMME
FOOD STANDARDS AGENCY - Westminster,FOOD STANDARDS AGENCY - Westminster,2018-05-15,EXP - PURCHASE OF GOODS/SERVICES - OTHER TRAVEL,ORGANISATIONAL DEVELOPMENT,REDFERN TRAVEL LTD,1011706022,36.99,Travel Expenses Wk 18,BD1 5HQ,ADMIN
FOOD STANDARDS AGENCY - Westminster,FOOD STANDARDS AGENCY - Westminster,2018-05-29,EXP - PURCHASE OF GOODS/SERVICES - SUBSISTENCE,Wales and West 2 (England),REDFERN TRAVEL LTD,1011706126,36.3,Travel Expenses Wk 20,BD1 5HQ,PROGRAMME
FOOD STANDARDS AGENCY - Westminster,FOOD STANDARDS AGENCY - Westminster,2018-05-15,EXP - PURCHASE OF GOODS/SERVICES - RAIL TRAVEL,"PLANNING, PERFORMANCE & CHANGE",REDFERN TRAVEL LTD,1011706022,34.2,Travel Expenses Wk 18,BD1 5HQ,ADMIN
FOOD STANDARDS AGENCY - Westminster,FOOD STANDARDS AGENCY - Westminster,2018-05-29,EXP - PURCHASE OF GOODS/SERVICES - RAIL TRAVEL,FOOD ADDITIVES,REDFERN TRAVEL LTD,1011706126,34,Travel Expenses Wk 20,BD1 5HQ,ADMIN
FOOD STANDARDS AGENCY - Westminster,FOOD STANDARDS AGENCY - Westminster,2018-05-01,EXP - PURCHASE OF GOODS/SERVICES - TAXI SERVICES,CHIEF SCIENTIST  ,REDFERN TRAVEL LTD,1011705889,33.32,Travel Expenses Wk 16,BD1 5HQ,ADMIN
FOOD STANDARDS AGENCY - Westminster,FOOD STANDARDS AGENCY - Westminster,2018-05-18,EXP - PURCHASE OF GOODS/SERVICES - OTHER TRAVEL,COMMS,REDFERN TRAVEL LTD,1011706064,31.95,TRAVEL EXPENSES  Wk 19,BD1 5HQ,ADMIN
FOOD STANDARDS AGENCY - Westminster,FOOD STANDARDS AGENCY - Westminster,2018-05-18,EXP - PURCHASE OF GOODS/SERVICES - RAIL TRAVEL,PROGRAMME AND PROJECT DELIVERY,REDFERN TRAVEL LTD,1011706064,31.5,TRAVEL EXPENSES  Wk 19,BD1 5HQ,ADMIN
FOOD STANDARDS AGENCY - Westminster,FOOD STANDARDS AGENCY - Westminster,2018-05-01,EXP - PURCHASE OF GOODS/SERVICES - SUBSISTENCE,LEGAL  BRANCH A & INVESTIGATIONS,REDFERN TRAVEL LTD,1011705889,31.1,Travel Expenses Wk 16,BD1 5HQ,ADMIN
FOOD STANDARDS AGENCY - Westminster,FOOD STANDARDS AGENCY - Westminster,2018-05-01,EXP - PURCHASE OF GOODS/SERVICES - RAIL TRAVEL,North 1,REDFERN TRAVEL LTD,1011705889,31,Travel Expenses Wk 16,BD1 5HQ,PROGRAMME
FOOD STANDARDS AGENCY - Westminster,FOOD STANDARDS AGENCY - Westminster,2018-05-01,EXP - PURCHASE OF GOODS/SERVICES - OTHER TRAVEL,OPERATIONS ASSURANCE DIVISION (PROGRAMME),REDFERN TRAVEL LTD,1011705889,30,Travel Expenses Wk 16,BD1 5HQ,PROGRAMME
FOOD STANDARDS AGENCY - Westminster,FOOD STANDARDS AGENCY - Westminster,2018-05-29,EXP - PURCHASE OF GOODS/SERVICES - OTHER TRAVEL,OPERATIONS ASSURANCE DIVISION (PROGRAMME),REDFERN TRAVEL LTD,1011706126,27.16,Travel Expenses Wk 20,BD1 5HQ,PROGRAMME
FOOD STANDARDS AGENCY - Westminster,FOOD STANDARDS AGENCY - Westminster,2018-05-18,EXP - PURCHASE OF GOODS/SERVICES - RAIL TRAVEL,"PLANNING, PERFORMANCE & CHANGE",REDFERN TRAVEL LTD,1011706064,26.6,TRAVEL EXPENSES  Wk 19,BD1 5HQ,ADMIN
FOOD STANDARDS AGENCY - Westminster,FOOD STANDARDS AGENCY - Westminster,2018-05-29,EXP - PURCHASE OF GOODS/SERVICES - RAIL TRAVEL,CHIEF SCIENTIST  ,REDFERN TRAVEL LTD,1011706126,25.4,Travel Expenses Wk 20,BD1 5HQ,ADMIN
FOOD STANDARDS AGENCY - Westminster,FOOD STANDARDS AGENCY - Westminster,2018-05-08,EXP - PURCHASE OF GOODS/SERVICES - RAIL TRAVEL,East 2,REDFERN TRAVEL LTD,1011705948,24.7,Travel Expenses Wk 17,BD1 5HQ,PROGRAMME
FOOD STANDARDS AGENCY - Westminster,FOOD STANDARDS AGENCY - Westminster,2018-05-08,EXP - PURCHASE OF GOODS/SERVICES - OTHER TRAVEL,"PLANNING, PERFORMANCE & CHANGE",REDFERN TRAVEL LTD,1011705948,23.05,Travel Expenses Wk 17,BD1 5HQ,ADMIN
FOOD STANDARDS AGENCY - Westminster,FOOD STANDARDS AGENCY - Westminster,2018-05-15,EXP - PURCHASE OF GOODS/SERVICES - TAXI SERVICES,REGULATORY DELIVERY,REDFERN TRAVEL LTD,1011706022,22.93,Travel Expenses Wk 18,BD1 5HQ,ADMIN
FOOD STANDARDS AGENCY - Westminster,FOOD STANDARDS AGENCY - Westminster,2018-05-08,EXP - PURCHASE OF GOODS/SERVICES - OTHER TRAVEL,NORTHERN IRELAND,REDFERN TRAVEL LTD,1011705948,22.15,Travel Expenses Wk 17,BD1 5HQ,ADMIN
FOOD STANDARDS AGENCY - Westminster,FOOD STANDARDS AGENCY - Westminster,2018-05-15,EXP - PURCHASE OF GOODS/SERVICES - OTHER TRAVEL,FOOD ADDITIVES,REDFERN TRAVEL LTD,1011706022,22,Travel Expenses Wk 18,BD1 5HQ,ADMIN
FOOD STANDARDS AGENCY - Westminster,FOOD STANDARDS AGENCY - Westminster,2018-05-29,EXP - PURCHASE OF GOODS/SERVICES - TAXI SERVICES,REGULATORY DELIVERY,REDFERN TRAVEL LTD,1011706126,21,Travel Expenses Wk 20,BD1 5HQ,ADMIN
FOOD STANDARDS AGENCY - Westminster,FOOD STANDARDS AGENCY - Westminster,2018-05-15,EXP - PURCHASE OF GOODS/SERVICES - TAXI SERVICES,CORPORATE SUPPORT UNIT,REDFERN TRAVEL LTD,1011706022,20.14,Travel Expenses Wk 18,BD1 5HQ,ADMIN
FOOD STANDARDS AGENCY - Westminster,FOOD STANDARDS AGENCY - Westminster,2018-05-15,EXP - PURCHASE OF GOODS/SERVICES - OTHER TRAVEL,INPORT & EXPORTS TEAM,REDFERN TRAVEL LTD,1011706022,19.99,Travel Expenses Wk 18,BD1 5HQ,ADMIN
FOOD STANDARDS AGENCY - Westminster,FOOD STANDARDS AGENCY - Westminster,2018-05-15,EXP - PURCHASE OF GOODS/SERVICES - RAIL TRAVEL,East 2,REDFERN TRAVEL LTD,1011706022,19.9,Travel Expenses Wk 18,BD1 5HQ,PROGRAMME
FOOD STANDARDS AGENCY - Westminster,FOOD STANDARDS AGENCY - Westminster,2018-05-08,EXP - PURCHASE OF GOODS/SERVICES - RAIL TRAVEL,INTERNAL AUDIT,REDFERN TRAVEL LTD,1011705948,19.8,Travel Expenses Wk 17,BD1 5HQ,ADMIN
FOOD STANDARDS AGENCY - Westminster,FOOD STANDARDS AGENCY - Westminster,2018-05-01,EXP - PURCHASE OF GOODS/SERVICES - OTHER TRAVEL,NORTHERN IRELAND,REDFERN TRAVEL LTD,1011705889,17.65,Travel Expenses Wk 16,BD1 5HQ,ADMIN
FOOD STANDARDS AGENCY - Westminster,FOOD STANDARDS AGENCY - Westminster,2018-05-01,EXP - PURCHASE OF GOODS/SERVICES - TAXI SERVICES,ORGANISATIONAL DEVELOPMENT,REDFERN TRAVEL LTD,1011705889,14.28,Travel Expenses Wk 16,BD1 5HQ,ADMIN
FOOD STANDARDS AGENCY - Westminster,FOOD STANDARDS AGENCY - Westminster,2018-05-29,EXP - PURCHASE OF GOODS/SERVICES - OTHER TRAVEL,Wales and West 4 ,REDFERN TRAVEL LTD,1011706126,13.7,Travel Expenses Wk 20,BD1 5HQ,PROGRAMME
FOOD STANDARDS AGENCY - Westminster,FOOD STANDARDS AGENCY - Westminster,2018-05-15,EXP - PURCHASE OF GOODS/SERVICES - TAXI SERVICES,OPERATIONAL DELIVERY,REDFERN TRAVEL LTD,1011706022,12.72,Travel Expenses Wk 18,BD1 5HQ,PROGRAMME
FOOD STANDARDS AGENCY - Westminster,FOOD STANDARDS AGENCY - Westminster,2018-05-18,EXP - PURCHASE OF GOODS/SERVICES - TAXI SERVICES,OPERATIONAL DELIVERY,REDFERN TRAVEL LTD,1011706064,12.72,TRAVEL EXPENSES  Wk 19,BD1 5HQ,PROGRAMME
FOOD STANDARDS AGENCY - Westminster,FOOD STANDARDS AGENCY - Westminster,2018-05-01,EXP - PURCHASE OF GOODS/SERVICES - OTHER TRAVEL,"RADIOLOGICAL, NOVEL FOOD & PROCESSES",REDFERN TRAVEL LTD,1011705889,10.8,Travel Expenses Wk 16,BD1 5HQ,ADMIN
FOOD STANDARDS AGENCY - Westminster,FOOD STANDARDS AGENCY - Westminster,2018-05-18,EXP - PURCHASE OF GOODS/SERVICES - RAIL TRAVEL,East 3,REDFERN TRAVEL LTD,1011706064,10,TRAVEL EXPENSES  Wk 19,BD1 5HQ,PROGRAMME
FOOD STANDARDS AGENCY - Westminster,FOOD STANDARDS AGENCY - Westminster,2018-05-15,EXP - PURCHASE OF GOODS/SERVICES - TAXI SERVICES,INFORMATION & KNOWLEDGE MANAGMENT,REDFERN TRAVEL LTD,1011706022,9.67,Travel Expenses Wk 18,BD1 5HQ,ADMIN
FOOD STANDARDS AGENCY - Westminster,FOOD STANDARDS AGENCY - Westminster,2018-05-15,EXP - PURCHASE OF GOODS/SERVICES - RAIL TRAVEL,Wales and West 1 (England),REDFERN TRAVEL LTD,1011706022,8.7,Travel Expenses Wk 18,BD1 5HQ,PROGRAMME
FOOD STANDARDS AGENCY - Westminster,FOOD STANDARDS AGENCY - Westminster,2018-05-15,EXP - PURCHASE OF GOODS/SERVICES -  FOREIGN AIR TRAVEL,MEAT HYGIENE POLICY,REDFERN TRAVEL LTD,1011706022,8.16,Travel Expenses Wk 18,BD1 5HQ,ADMIN
FOOD STANDARDS AGENCY - Westminster,FOOD STANDARDS AGENCY - Westminster,2018-05-29,EXP - PURCHASE OF GOODS/SERVICES - TAXI SERVICES,ORGANISATIONAL DEVELOPMENT,REDFERN TRAVEL LTD,1011706126,7.14,Travel Expenses Wk 20,BD1 5HQ,ADMIN
FOOD STANDARDS AGENCY - Westminster,FOOD STANDARDS AGENCY - Westminster,2018-05-08,EXP - PURCHASE OF GOODS/SERVICES - TAXI SERVICES,OPERATIONAL DELIVERY,REDFERN TRAVEL LTD,1011705948,6.36,Travel Expenses Wk 17,BD1 5HQ,PROGRAMME
FOOD STANDARDS AGENCY - Westminster,FOOD STANDARDS AGENCY - Westminster,2018-05-01,EXP - PURCHASE OF GOODS/SERVICES - SUBSISTENCE,CHIEF SCIENTIST  ,REDFERN TRAVEL LTD,1011705889,2.92,Travel Expenses Wk 16,BD1 5HQ,ADMIN
FOOD STANDARDS AGENCY - Westminster,FOOD STANDARDS AGENCY - Westminster,2018-05-08,EXP - PURCHASE OF GOODS/SERVICES - FOREIGN SUBSISTENCE,ORGANISATIONAL DEVELOPMENT,REDFERN TRAVEL LTD,1011705948,2.33,Travel Expenses Wk 17,BD1 5HQ,ADMIN
FOOD STANDARDS AGENCY - Westminster,FOOD STANDARDS AGENCY - Westminster,2018-05-15,EXP - PURCHASE OF GOODS/SERVICES - SUBSISTENCE,FOOD ADDITIVES,REDFERN TRAVEL LTD,1011706022,1.8,Travel Expenses Wk 18,BD1 5HQ,ADMIN
FOOD STANDARDS AGENCY - Westminster,FOOD STANDARDS AGENCY - Westminster,2018-05-18,EXP - PURCHASE OF GOODS/SERVICES - FOREIGN SUBSISTENCE,"AGRICULTURAL, PROCESS & ENVIRONMENTAL CONTAMINANTS",REDFERN TRAVEL LTD,1011706064,1.2,TRAVEL EXPENSES  Wk 19,BD1 5HQ,ADMIN
FOOD STANDARDS AGENCY - Westminster,FOOD STANDARDS AGENCY - Westminster,2018-05-29,EXP - PURCHASE OF GOODS/SERVICES - FOREIGN SUBSISTENCE,FOOD INCIDENTS AND RESILIENCE PROG,REDFERN TRAVEL LTD,1011706126,1.2,Travel Expenses Wk 20,BD1 5HQ,PROGRAMME
FOOD STANDARDS AGENCY - Westminster,FOOD STANDARDS AGENCY - Westminster,2018-05-18,EXP - PURCHASE OF GOODS/SERVICES - SUBSISTENCE,NON MEAT FIELD OPS,REDFERN TRAVEL LTD,1011706064,1.2,TRAVEL EXPENSES  Wk 19,BD1 5HQ,PROGRAMME
FOOD STANDARDS AGENCY - Westminster,FOOD STANDARDS AGENCY - Westminster,2018-05-08,EXP - PURCHASE OF GOODS/SERVICES - SUBSISTENCE,REGULATORY & INTERNATIONAL,REDFERN TRAVEL LTD,1011705948,1.2,Travel Expenses Wk 17,BD1 5HQ,ADMIN
FOOD STANDARDS AGENCY - Westminster,FOOD STANDARDS AGENCY - Westminster,2018-05-08,EXP - PURCHASE OF GOODS/SERVICES - FOREIGN SUBSISTENCE,SCIENTIFIC METHODS AND LABORATORY POLICY,REDFERN TRAVEL LTD,1011705948,1.2,Travel Expenses Wk 17,BD1 5HQ,ADMIN
FOOD STANDARDS AGENCY - Westminster,FOOD STANDARDS AGENCY - Westminster,2018-05-15,EXP - PURCHASE OF GOODS/SERVICES - FOREIGN SUBSISTENCE,SCIENTIFIC METHODS AND LABORATORY POLICY,REDFERN TRAVEL LTD,1011706022,1.2,Travel Expenses Wk 18,BD1 5HQ,ADMIN
FOOD STANDARDS AGENCY - Westminster,FOOD STANDARDS AGENCY - Westminster,2018-05-01,EXP - PURCHASE OF GOODS/SERVICES - FOREIGN SUBSISTENCE,"AGRICULTURAL, PROCESS & ENVIRONMENTAL CONTAMINANTS",REDFERN TRAVEL LTD,1011705889,0.6,Travel Expenses Wk 16,BD1 5HQ,ADMIN
FOOD STANDARDS AGENCY - Westminster,FOOD STANDARDS AGENCY - Westminster,2018-05-15,EXP - PURCHASE OF GOODS/SERVICES - SUBSISTENCE,ANIMAL FEED,REDFERN TRAVEL LTD,1011706022,0.6,Travel Expenses Wk 18,BD1 5HQ,ADMIN
FOOD STANDARDS AGENCY - Westminster,FOOD STANDARDS AGENCY - Westminster,2018-05-01,EXP - PURCHASE OF GOODS/SERVICES - SUBSISTENCE,"ANIMAL FEED, TSEs & ABPs",REDFERN TRAVEL LTD,1011705889,0.6,Travel Expenses Wk 16,BD1 5HQ,ADMIN
FOOD STANDARDS AGENCY - Westminster,FOOD STANDARDS AGENCY - Westminster,2018-05-08,EXP - PURCHASE OF GOODS/SERVICES - FOREIGN SUBSISTENCE,"ANIMAL FEED, TSEs & ABPs",REDFERN TRAVEL LTD,1011705948,0.6,Travel Expenses Wk 17,BD1 5HQ,ADMIN
FOOD STANDARDS AGENCY - Westminster,FOOD STANDARDS AGENCY - Westminster,2018-05-15,EXP - PURCHASE OF GOODS/SERVICES - FOREIGN SUBSISTENCE,FOOD CRIME UNIT ADMIN,REDFERN TRAVEL LTD,1011706022,0.6,Travel Expenses Wk 18,BD1 5HQ,ADMIN
FOOD STANDARDS AGENCY - Westminster,FOOD STANDARDS AGENCY - Westminster,2018-05-29,EXP - PURCHASE OF GOODS/SERVICES - SUBSISTENCE,FOOD CRIME UNIT ADMIN,REDFERN TRAVEL LTD,1011706126,0.6,Travel Expenses Wk 20,BD1 5HQ,ADMIN
FOOD STANDARDS AGENCY - Westminster,FOOD STANDARDS AGENCY - Westminster,2018-05-01,EXP - PURCHASE OF GOODS/SERVICES - FOREIGN SUBSISTENCE,FOOD INCIDENTS AND RESILIENCE PROG,REDFERN TRAVEL LTD,1011705889,0.6,Travel Expenses Wk 16,BD1 5HQ,PROGRAMME
FOOD STANDARDS AGENCY - Westminster,FOOD STANDARDS AGENCY - Westminster,2018-05-08,EXP - PURCHASE OF GOODS/SERVICES - FOREIGN SUBSISTENCE,INPORT & EXPORTS TEAM,REDFERN TRAVEL LTD,1011705948,0.6,Travel Expenses Wk 17,BD1 5HQ,ADMIN
FOOD STANDARDS AGENCY - Westminster,FOOD STANDARDS AGENCY - Westminster,2018-05-08,EXP - PURCHASE OF GOODS/SERVICES - FOREIGN SUBSISTENCE,LEGAL  BRANCH A & INVESTIGATIONS,REDFERN TRAVEL LTD,1011705948,0.6,Travel Expenses Wk 17,BD1 5HQ,ADMIN
FOOD STANDARDS AGENCY - Westminster,FOOD STANDARDS AGENCY - Westminster,2018-05-29,EXP - PURCHASE OF GOODS/SERVICES - SUBSISTENCE,MEAT HYGIENE POLICY,REDFERN TRAVEL LTD,1011706126,0.6,Travel Expenses Wk 20,BD1 5HQ,ADMIN
FOOD STANDARDS AGENCY - Westminster,FOOD STANDARDS AGENCY - Westminster,2018-05-08,EXP - PURCHASE OF GOODS/SERVICES - FOREIGN SUBSISTENCE,MICRO FOOD SAFETY BRANCH,REDFERN TRAVEL LTD,1011705948,0.6,Travel Expenses Wk 17,BD1 5HQ,ADMIN
FOOD STANDARDS AGENCY - Westminster,FOOD STANDARDS AGENCY - Westminster,2018-05-01,EXP - PURCHASE OF GOODS/SERVICES - FOREIGN SUBSISTENCE,"RADIOLOGICAL, NOVEL FOOD & PROCESSES",REDFERN TRAVEL LTD,1011705889,0.6,Travel Expenses Wk 16,BD1 5HQ,ADMIN
FOOD STANDARDS AGENCY - Westminster,FOOD STANDARDS AGENCY - Westminster,2018-05-29,EXP - PURCHASE OF GOODS/SERVICES - AIR TRAVEL,"CHAIR, DEPUTY CHAIR & BOARD",REDFERN TRAVEL LTD,1011706126,0,Travel Expenses Wk 20,BD1 5HQ,ADMIN
FOOD STANDARDS AGENCY - Westminster,FOOD STANDARDS AGENCY - Westminster,2018-05-08,EXP - PURCHASE OF GOODS/SERVICES - AIR TRAVEL,CHIEF SCIENTIST  ,REDFERN TRAVEL LTD,1011705948,0,Travel Expenses Wk 17,BD1 5HQ,ADMIN
FOOD STANDARDS AGENCY - Westminster,FOOD STANDARDS AGENCY - Westminster,2018-05-29,EXP - PURCHASE OF GOODS/SERVICES - SUBSISTENCE,Wales and West 3 ,REDFERN TRAVEL LTD,1011706126,-0.78,Travel Expenses Wk 20,BD1 5HQ,PROGRAMME
FOOD STANDARDS AGENCY - Westminster,FOOD STANDARDS AGENCY - Westminster,2018-05-08,EXP - PURCHASE OF GOODS/SERVICES - OTHER TRAVEL,INFORMATION & KNOWLEDGE MANAGMENT,REDFERN TRAVEL LTD,1011705948,-2.7,Travel Expenses Wk 17,BD1 5HQ,ADMIN
FOOD STANDARDS AGENCY - Westminster,FOOD STANDARDS AGENCY - Westminster,2018-05-15,EXP - PURCHASE OF GOODS/SERVICES - RAIL TRAVEL,Wales and West 2 (England),REDFERN TRAVEL LTD,1011706022,-20.05,Travel Expenses Wk 18,BD1 5HQ,PROGRAMME
FOOD STANDARDS AGENCY - Westminster,FOOD STANDARDS AGENCY - Westminster,2018-05-08,EXP - PURCHASE OF GOODS/SERVICES - OTHER TRAVEL,"RADIOLOGICAL, NOVEL FOOD & PROCESSES",REDFERN TRAVEL LTD,1011705948,-27,Travel Expenses Wk 17,BD1 5HQ,ADMIN
FOOD STANDARDS AGENCY - Westminster,FOOD STANDARDS AGENCY - Westminster,2018-05-08,EXP - PURCHASE OF GOODS/SERVICES - RAIL TRAVEL,Wales and West 2 (England),REDFERN TRAVEL LTD,1011705948,-41.35,Travel Expenses Wk 17,BD1 5HQ,PROGRAMME
FOOD STANDARDS AGENCY - Westminster,FOOD STANDARDS AGENCY - Westminster,2018-05-29,EXP - PURCHASE OF GOODS/SERVICES - RAIL TRAVEL,CHIEF EXECUTIVE & PRIVATE OFFICE,REDFERN TRAVEL LTD,1011706126,-43.65,Travel Expenses Wk 20,BD1 5HQ,ADMIN
FOOD STANDARDS AGENCY - Westminster,FOOD STANDARDS AGENCY - Westminster,2018-05-01,EXP - PURCHASE OF GOODS/SERVICES - SUBSISTENCE,FINANCE BRANCH,REDFERN TRAVEL LTD,1011705889,-46,Travel Expenses Wk 16,BD1 5HQ,ADMIN
FOOD STANDARDS AGENCY - Westminster,FOOD STANDARDS AGENCY - Westminster,2018-05-01,EXP - PURCHASE OF GOODS/SERVICES - RAIL TRAVEL,LEGAL  BRANCH A & INVESTIGATIONS,REDFERN TRAVEL LTD,1011705889,-51.65,Travel Expenses Wk 16,BD1 5HQ,ADMIN
FOOD STANDARDS AGENCY - Westminster,FOOD STANDARDS AGENCY - Westminster,2018-05-18,EXP - PURCHASE OF GOODS/SERVICES - RAIL TRAVEL,SECURITY & ESTATES,REDFERN TRAVEL LTD,1011706064,-57.7,TRAVEL EXPENSES  Wk 19,BD1 5HQ,ADMIN
FOOD STANDARDS AGENCY - Westminster,FOOD STANDARDS AGENCY - Westminster,2018-05-29,EXP - PURCHASE OF GOODS/SERVICES - RAIL TRAVEL,North 4,REDFERN TRAVEL LTD,1011706126,-64.5,Travel Expenses Wk 20,BD1 5HQ,PROGRAMME
FOOD STANDARDS AGENCY - Westminster,FOOD STANDARDS AGENCY - Westminster,2018-05-01,EXP - PURCHASE OF GOODS/SERVICES - RAIL TRAVEL,North 4,REDFERN TRAVEL LTD,1011705889,-87.1,Travel Expenses Wk 16,BD1 5HQ,PROGRAMME
FOOD STANDARDS AGENCY - Westminster,FOOD STANDARDS AGENCY - Westminster,2018-05-18,EXP - PURCHASE OF GOODS/SERVICES - SUBSISTENCE,Wales and West 1 (Wales),REDFERN TRAVEL LTD,1011706064,-92.4,TRAVEL EXPENSES  Wk 19,BD1 5HQ,PROGRAMME
FOOD STANDARDS AGENCY - Westminster,FOOD STANDARDS AGENCY - Westminster,2018-05-15,EXP - PURCHASE OF GOODS/SERVICES - RAIL TRAVEL,FINANCE BRANCH,REDFERN TRAVEL LTD,1011706022,-92.8,Travel Expenses Wk 18,BD1 5HQ,ADMIN
FOOD STANDARDS AGENCY - Westminster,FOOD STANDARDS AGENCY - Westminster,2018-05-08,EXP - PURCHASE OF GOODS/SERVICES - RAIL TRAVEL,MICRO FOOD SAFETY BRANCH,REDFERN TRAVEL LTD,1011705948,-93.9,Travel Expenses Wk 17,BD1 5HQ,ADMIN
FOOD STANDARDS AGENCY - Westminster,FOOD STANDARDS AGENCY - Westminster,2018-05-15,EXP - PURCHASE OF GOODS/SERVICES - RAIL TRAVEL,NON MEAT FIELD OPS,REDFERN TRAVEL LTD,1011706022,-95.8,Travel Expenses Wk 18,BD1 5HQ,PROGRAMME
FOOD STANDARDS AGENCY - Westminster,FOOD STANDARDS AGENCY - Westminster,2018-05-18,EXP - PURCHASE OF GOODS/SERVICES - RAIL TRAVEL,PROCUREMENT,REDFERN TRAVEL LTD,1011706064,-103,TRAVEL EXPENSES  Wk 19,BD1 5HQ,ADMIN
FOOD STANDARDS AGENCY - Westminster,FOOD STANDARDS AGENCY - Westminster,2018-05-29,EXP - PURCHASE OF GOODS/SERVICES - SUBSISTENCE,CHIEF EXECUTIVE & PRIVATE OFFICE,REDFERN TRAVEL LTD,1011706126,-107.95,Travel Expenses Wk 20,BD1 5HQ,ADMIN
FOOD STANDARDS AGENCY - Westminster,FOOD STANDARDS AGENCY - Westminster,2018-05-18,EXP - PURCHASE OF GOODS/SERVICES - RAIL TRAVEL,North 4,REDFERN TRAVEL LTD,1011706064,-110,TRAVEL EXPENSES  Wk 19,BD1 5HQ,PROGRAMME
FOOD STANDARDS AGENCY - Westminster,FOOD STANDARDS AGENCY - Westminster,2018-05-01,EXP - PURCHASE OF GOODS/SERVICES - SUBSISTENCE,Wales and West 1 (Wales),REDFERN TRAVEL LTD,1011705889,-138.6,Travel Expenses Wk 16,BD1 5HQ,PROGRAMME
FOOD STANDARDS AGENCY - Westminster,FOOD STANDARDS AGENCY - Westminster,2018-05-29,EXP - PURCHASE OF GOODS/SERVICES - RAIL TRAVEL,REGULATING OUR FUTURE,REDFERN TRAVEL LTD,1011706126,-172.9,Travel Expenses Wk 20,BD1 5HQ,ADMIN
FOOD STANDARDS AGENCY - Westminster,FOOD STANDARDS AGENCY - Westminster,2018-05-01,EXP - PURCHASE OF GOODS/SERVICES - RAIL TRAVEL,Wales and West 2 (England),REDFERN TRAVEL LTD,1011705889,-192.15,Travel Expenses Wk 16,BD1 5HQ,PROGRAMME
FOOD STANDARDS AGENCY - Westminster,FOOD STANDARDS AGENCY - Westminster,2018-05-01,EXP - PURCHASE OF GOODS/SERVICES - RAIL TRAVEL,Wales and West 3 ,REDFERN TRAVEL LTD,1011705889,-221,Travel Expenses Wk 16,BD1 5HQ,PROGRAMME
FOOD STANDARDS AGENCY - Westminster,FOOD STANDARDS AGENCY - Westminster,2018-05-29,EXP - PURCHASE OF GOODS/SERVICES - RAIL TRAVEL,Wales and West 2 (Wales),REDFERN TRAVEL LTD,1011706126,-260.2,Travel Expenses Wk 20,BD1 5HQ,PROGRAMME
FOOD STANDARDS AGENCY - Westminster,FOOD STANDARDS AGENCY - Westminster,2018-05-08,EXP - PURCHASE OF GOODS/SERVICES - AIR TRAVEL,FOOD CRIME UNIT PROG,REDFERN TRAVEL LTD,1011705948,-809.5,Travel Expenses Wk 17,BD1 5HQ,PROGRAMME
